Workbook

Sheet INVOICE 1
A1: STATE OF CALIFORNIA | K1: Purchase Authority | L1: BSCC-5227
A2: BOARD OF STATE AND COMMUNITY CORRECTIONS | K2: Purchase Order: | M2: 5227-0000003044
A3: Financial Invoice Form: BSCC 201 (Revised 04/2020)
A5: Program: | B5: TITLE II | J5: Please Note: The California State Controller's Office will send all checks directly to the address listed in the "BSCC Vendor Data" section at the bottom of this invoice.
A7: Grantee: | B7: Center for Young Women's Development DBA Young Women's Freedom Center
A9: Contract #: | B9: BSCC 309-19 | D9: Term: | E9: 2019-12-01 | F9: TO | G9: 2022-11-30 | K9: Invoicing Frequency | L9: QUARTERLY
A11: Invoice #: | B11: 1 TITLE II 2019 | D11: Reporting Period: | E11: 2019-12-01 | F11: TO | G11: 2020-03-31 | H11: Due: | I11: 2020-05-15 | K11: Final Invoice (Y/N): | L11: No
A13: Line Items | B13: Budget | E13: Prior Expenditures | H13: This Reporting Period | K13: Balance
A14: Salaries & Benefits | C14: 316440 | F14: 0 | I14: 29400 | L14: =SUM(C14-F14-I14) -> 287040
A15: Services & Supplies | C15: 283500 | F15: 0 | I15: 29097 | L15: =SUM(C15-F15-I15) -> 254403
A16: Professional Services | C16: 0 | F16: 0 | I16: 0 | L16: 0
A17: NGO Subcontracts | C17: 420060 | F17: 0 | I17: 0 | L17: 420060
A18: Indirect Costs / Administrative Costs | C18: 0 | F18: 0 | I18: 0 | L18: 0
A19: Equipment / Fixed Assets | C19: 0 | F19: 0 | I19: 0 | L19: 0
A20: Project Evaluation & Data Collection | C20: 30000 | F20: 0 | I20: 0 | L20: 30000
A21: Other (include travel costs) | C21: 0 | F21: 0 | I21: 0 | L21: 0
A22: TOTAL | C22: =SUM(C14:C21) -> 1050000 | F22: =SUM(F14:F21) -> 0 | I22: =SUM(I14:I21) -> 58497 | L22: =SUM(L14:L21) -> 991503
A24: Project Income | C24: Income reported to date | D24: =I24 -> 0 | F24: Prior allocated income | G24: 0 | H24: This Period | I24: 0 | L24: Unallocated income balance | M24: =D24-G24 -> 0
C26: Grant funds expended to date: | D26: =F22+I22 -> 58497 | G26: Grant funds claimed this period: | H26: =I22 -> 58497 | L26: Percentage Grant $$ expended to date: | M26: =D26/C22 -> 0.05571142857
D29: Expenditure Descriptions - Units / $ Amounts | L29: Comments
A30: Salaries & Benefits | C30: =I14 -> 29400 | D30: 1 FTE Program Manager + 26% benefits - 4 months/$21840; 0.075 FTE Program Evaluation Director + 26% benefits - 4 months/$7560; .01 FTE Executive Director + 26% benefits -4 months/$5040
A31: Services & Supplies | C31: =I15 -> 29097 | D31: Youth Honorarium, 14 youth - 4 months/$28810.13; Training materials, art supplies - 4 months/$287.06
A32: Professional Services | C32: 0
A33: NGO Subcontracts | C33: 0
A34: Indirect Costs/Administrative | C34: 0
A35: Equipment/Fixed Assets | C35: 0
A36: Project Evaluation & Data Collection | C36: 0
A37: Other (include travel costs) | C37: 0
A38: PERSON PREPARING REPORT | E38: AUTHORIZED FINANCIAL OFFICER | K38: BSCC Supplier Data - Internal Use Only
E39: I hereby certify that I am the authorized financial officer of the herein named agency. I further certify that I have not violated any of the provisions of Section 1090 of the Government Code in incurring the expenditures reported in this request for payment, nor in any other way; that Sections 1090 through 1096 of the Government Code will not be violated in any way in the expenditure of funds pursuant to this request; that statement of funds above is true, correct, and in accordance with program provisions in all respects; and that all funds requested after the expiration date of this contract are for the purpose of liquidating obligations legally incurred under the life of this contract. By signing this report, I certify to the best of my knowledge and belief that the report is true, complete, and accurate, and the expenditures, disbursements and cash receipts are for the purposes and objectives set forth in the terms and conditions of the Federal award. I am aware that any false, fictitious, or fraudulent information, or the omission of any material fact, may subject me to criminal, civil or administrative penalties for fraud, false statements, false claims or otherwise. (U.S. Code Title 18, Section 1001 and Title 31, Sections 3729–3730 and 3801–3812).Furthermore, by submitting this invoice, I acknowledge that it must adhere to all of the requirements in the BSCC Grant Administration Guide, including any updates to the Guide during the term of the grant agreement.
A40: Kayla Cameron, Finance Director | K40: 107816
A41: Name, Title | K41: Supplier ID
A42: 628-629-4475 | K42: CNTR FOR YOUNG WOMENS DEV
A43: Phone | K43: Supplier Name
A44: kayla@youngwomenfree.org | K44: 832 Folsom Street, Suite 700
A45: Email | K45: Address Line 1
A46: 2020-05-15 | K46: San Francisco, CA 94107
A47: Date | K47: Address Line 2
E49: Jessica Nowlan, Executive Director
E50: Name, Title
E51: 510-689-7310
E52: Phone
E53: 2020-05-15
E54: Date
A56: BSCC USE ONLY
A57: Date Received: | C57: 2020-05-28 | G57: Approved By: | I57: Timothy J. Polasik, 6/5/2020
I58: BSCC Field Representative, Date

Sheet INVOICE 2
A1: STATE OF CALIFORNIA | K1: Purchase Authority | L1: BSCC-5227
A2: BOARD OF STATE AND COMMUNITY CORRECTIONS | K2: Purchase Order: | M2: ='INVOICE 1'!M2 -> 5227-0000003044
A3: Financial Invoice Form: BSCC 201 (Revised 04/2020)
A5: Program: | B5: ='INVOICE 1'!B5 -> TITLE II | J5: Please Note: The California State Controller's Office will send all checks directly to the address listed in the "BSCC Vendor Data" section at the bottom of this invoice.
A7: Grantee: | B7: ='INVOICE 1'!B7 -> Center for Young Women's Development DBA Young Women's Freedom Center
A9: Contract #: | B9: ='INVOICE 1'!B9 -> BSCC 309-19 | D9: Term: | E9: ='INVOICE 1'!E9 -> 2019-12-01 | F9: TO | G9: ='INVOICE 1'!G9 -> 2022-11-30 | K9: Invoicing Frequency | L9: QUARTERLY
A11: Invoice #: | B11: 2 TITLE II 2019 | D11: Reporting Period: | E11: 2020-04-01 | F11: TO | G11: 2020-06-30 | H11: Due: | I11: 2020-08-15 | K11: Final Invoice (Y/N): | L11: No
A13: Line Items | B13: Budget | E13: Prior Expenditures | H13: This Reporting Period | K13: Balance
A14: ='INVOICE 1'!A14 -> Salaries & Benefits | C14: ='INVOICE 1'!C14 -> 316440 | F14: ='INVOICE 1'!F14+'INVOICE 1'!I14 -> 29400 | I14: 22050 | L14: =C14-F14-I14 -> 264990
A15: ='INVOICE 1'!A15 -> Services & Supplies | C15: ='INVOICE 1'!C15 -> 283500 | F15: ='INVOICE 1'!F15+'INVOICE 1'!I15 -> 29097 | I15: 18033 | L15: =C15-F15-I15 -> 236370
A16: ='INVOICE 1'!A16 -> Professional Services | C16: ='INVOICE 1'!C16 -> 0 | F16: ='INVOICE 1'!F16+'INVOICE 1'!I16 -> 0 | I16: 0 | L16: 0
A17: ='INVOICE 1'!A17 -> NGO Subcontracts | C17: ='INVOICE 1'!C17 -> 420060 | F17: ='INVOICE 1'!F17+'INVOICE 1'!I17 -> 0 | I17: 0 | L17: 420060
A18: ='INVOICE 1'!A18 -> Indirect Costs / Administrative Costs | C18: ='INVOICE 1'!C18 -> 0 | F18: ='INVOICE 1'!F18+'INVOICE 1'!I18 -> 0 | I18: 0 | L18: 0
A19: ='INVOICE 1'!A19 -> Equipment / Fixed Assets | C19: ='INVOICE 1'!C19 -> 0 | F19: ='INVOICE 1'!F19+'INVOICE 1'!I19 -> 0 | I19: 0 | L19: 0
A20: ='INVOICE 1'!A20 -> Project Evaluation & Data Collection | C20: ='INVOICE 1'!C20 -> 30000 | F20: ='INVOICE 1'!F20+'INVOICE 1'!I20 -> 0 | I20: 0 | L20: 30000
A21: ='INVOICE 1'!A21 -> Other (include travel costs) | C21: ='INVOICE 1'!C21 -> 0 | F21: ='INVOICE 1'!F21+'INVOICE 1'!I21 -> 0 | I21: 0 | L21: 0
A22: TOTAL | C22: =SUM(C14:C21) -> 1050000 | F22: =SUM(F14:F21) -> 58497 | I22: =SUM(I14:I21) -> 40083 | L22: =SUM(L14:L21) -> 951420
A24: Project Income | C24: Income reported to date | D24: ='INVOICE 1'!D24+'INVOICE 2'!I24 -> 0 | F24: Prior allocated income | G24: 0 | H24: This Period | I24: 0 | L24: Unallocated income balance | M24: =D24-G24 -> 0
C26: Grant funds expended to date: | D26: =F22+I22 -> 98580 | G26: Grant funds claimed this period: | H26: =I22 -> 40083 | L26: Percentage Grant $$ expended to date: | M26: =D26/C22 -> 0.09388571429
D29: Expenditure Descriptions - Units / $ Amounts | L29: Comments
A30: ='INVOICE 1'!A30:B30 -> Salaries & Benefits | C30: =I14 -> 22050 | D30: 1 FTE Program Manager + 26% benefits - 3 months/$16380; 0.075 FTE Program Evaluation Director + 26% benefits - 3 months/$1890; .01 FTE Executive Director + 26% benefits -3 months/$3780
A31: ='INVOICE 1'!A31:B31 -> Services & Supplies | C31: =I15 -> 18033 | D31: Youth Honorarium, 11 youth - 3 months/$16934.25; Training materials, art supplies - 3 months/$1098.36
A32: ='INVOICE 1'!A32:B32 -> Professional Services | C32: 0
A33: ='INVOICE 1'!A33:B33 -> NGO Subcontracts | C33: 0
A34: ='INVOICE 1'!A34:B34 -> Indirect Costs/Administrative | C34: 0
A35: ='INVOICE 1'!A35:B35 -> Equipment/Fixed Assets | C35: 0
A36: ='INVOICE 1'!A36:B36 -> Project Evaluation & Data Collection | C36: 0
A37: ='INVOICE 1'!A37:B37 -> Other (include travel costs) | C37: 0
A38: PERSON PREPARING REPORT | E38: AUTHORIZED FINANCIAL OFFICER | K38: BSCC Supplier Data - Internal Use Only
E39: I hereby certify that I am the authorized financial officer of the herein named agency. I further certify that I have not violated any of the provisions of Section 1090 of the Government Code in incurring the expenditures reported in this request for payment, nor in any other way; that Sections 1090 through 1096 of the Government Code will not be violated in any way in the expenditure of funds pursuant to this request; that statement of funds above is true, correct, and in accordance with program provisions in all respects; and that all funds requested after the expiration date of this contract are for the purpose of liquidating obligations legally incurred under the life of this contract. By signing this report, I certify to the best of my knowledge and belief that the report is true, complete, and accurate, and the expenditures, disbursements and cash receipts are for the purposes and objectives set forth in the terms and conditions of the Federal award. I am aware that any false, fictitious, or fraudulent information, or the omission of any material fact, may subject me to criminal, civil or administrative penalties for fraud, false statements, false claims or otherwise. (U.S. Code Title 18, Section 1001 and Title 31, Sections 3729–3730 and 3801–3812).Furthermore, by submitting this invoice, I acknowledge that it must adhere to all of the requirements in the BSCC Grant Administration Guide, including any updates to the Guide during the term of the grant agreement.
A40: Kayla Cameron, Finance Director | K40: ='INVOICE 1'!K40:M40 -> 107816
A41: Name, Title | K41: ='INVOICE 1'!K41:M41 -> Supplier ID
A42: 6286294475 | K42: ='INVOICE 1'!K42:M42 -> CNTR FOR YOUNG WOMENS DEV
A43: Phone | K43: ='INVOICE 1'!K43:M43 -> Supplier Name
A44: kayla@youngwomenfree.org | K44: ='INVOICE 1'!K44:M44 -> 832 Folsom Street, Suite 700
A45: Email | K45: ='INVOICE 1'!K45:M45 -> Address Line 1
A46: 2020-08-14 | K46: ='INVOICE 1'!K46:M46 -> San Francisco, CA 94107
A47: Date | K47: ='INVOICE 1'!K47:M47 -> Address Line 2
E49: Jessica Nowlan, Executive Director
E50: Name, Title
E51: 4157038800
E52: Phone
E53: 2020-08-14
E54: Date
A56: BSCC USE ONLY
A57: Date Received: | C57: 2020-08-25 | G57: Approved By: | I57: Timothy J. Polasik, 9/4/2020
I58: BSCC Field Representative, Date

Sheet INVOICE 3
A1: STATE OF CALIFORNIA | K1: Purchase Authority | L1: BSCC-5227
A2: BOARD OF STATE AND COMMUNITY CORRECTIONS | K2: Purchase Order: | M2: ='INVOICE 2'!M2 -> 5227-0000003044
A3: Financial Invoice Form: BSCC 201 (Revised 04/2020)
A5: Program: | B5: ='INVOICE 1'!B5 -> TITLE II | J5: Please Note: The California State Controller's Office will send all checks directly to the address listed in the "BSCC Vendor Data" section at the bottom of this invoice.
A7: Grantee: | B7: ='INVOICE 1'!B7 -> Center for Young Women's Development DBA Young Women's Freedom Center
A9: Contract #: | B9: ='INVOICE 1'!B9 -> BSCC 309-19 | D9: Term: | E9: ='INVOICE 1'!E9 -> 2019-12-01 | F9: TO | G9: ='INVOICE 1'!G9 -> 2022-11-30 | K9: Invoicing Frequency | L9: QUARTERLY
A11: Invoice #: | B11: 3 TITLE II 2019 | D11: Reporting Period: | E11: 2020-07-01 | F11: TO | G11: 2020-09-30 | H11: Due: | I11: 2020-11-15 | K11: Final Invoice (Y/N): | L11: No
A13: Line Items | B13: Budget | E13: Prior Expenditures | H13: This Reporting Period | K13: Balance
A14: ='INVOICE 1'!A14 -> Salaries & Benefits | C14: ='INVOICE 1'!C14 -> 316440 | F14: ='INVOICE 2'!F14+'INVOICE 2'!I14 -> 51450 | I14: 22050 | L14: =C14-F14-I14 -> 242940
A15: ='INVOICE 1'!A15 -> Services & Supplies | C15: ='INVOICE 1'!C15 -> 283500 | F15: ='INVOICE 2'!F15+'INVOICE 2'!I15 -> 47130 | I15: 3006 | L15: =C15-F15-I15 -> 233364
A16: ='INVOICE 1'!A16 -> Professional Services | C16: ='INVOICE 1'!C16 -> 0 | F16: ='INVOICE 2'!F16+'INVOICE 2'!I16 -> 0 | I16: 0 | L16: 0
A17: ='INVOICE 1'!A17 -> NGO Subcontracts | C17: ='INVOICE 1'!C17 -> 420060 | F17: ='INVOICE 2'!F17+'INVOICE 2'!I17 -> 0 | I17: 0 | L17: 420060
A18: ='INVOICE 1'!A18 -> Indirect Costs / Administrative Costs | C18: ='INVOICE 1'!C18 -> 0 | F18: ='INVOICE 2'!F18+'INVOICE 2'!I18 -> 0 | I18: 0 | L18: 0
A19: ='INVOICE 1'!A19 -> Equipment / Fixed Assets | C19: ='INVOICE 1'!C19 -> 0 | F19: ='INVOICE 2'!F19+'INVOICE 2'!I19 -> 0 | I19: 0 | L19: 0
A20: ='INVOICE 1'!A20 -> Project Evaluation & Data Collection | C20: ='INVOICE 1'!C20 -> 30000 | F20: ='INVOICE 2'!F20+'INVOICE 2'!I20 -> 0 | I20: 0 | L20: 30000
A21: ='INVOICE 1'!A21 -> Other (include travel costs) | C21: ='INVOICE 1'!C21 -> 0 | F21: ='INVOICE 2'!F21+'INVOICE 2'!I21 -> 0 | I21: 0 | L21: 0
A22: TOTAL | C22: =SUM(C14:C21) -> 1050000 | F22: =SUM(F14:F21) -> 98580 | I22: =SUM(I14:I21) -> 25056 | L22: =SUM(L14:L21) -> 926364
A24: Project Income | C24: Income reported to date | D24: ='INVOICE 2'!D24+'INVOICE 3'!I24 -> 0 | F24: Prior allocated income | G24: 0 | H24: This Period | I24: 0 | L24: Unallocated income balance | M24: =D24-G24 -> 0
C26: Grant funds expended to date: | D26: =F22+I22 -> 123636 | G26: Grant funds claimed this period: | H26: =I22 -> 25056 | L26: Percentage Grant $$ expended to date: | M26: =D26/C22 -> 0.1177485714
D29: Expenditure Descriptions - Units / $ Amounts | L29: Comments
A30: ='INVOICE 1'!A30:B30 -> Salaries & Benefits | C30: =I14 -> 22050 | D30: 1 FTE Program Manager + 26% benefits - 3 months/$16,380; 0.075 FTE Program Evaluation Director + 26% benefits - 3 months/$1,890; .01 FTE Executive Director + 26% benefits -3 months/$3,780
A31: ='INVOICE 1'!A31:B31 -> Services & Supplies | C31: =I15 -> 3006 | D31: Youth Honorarium - 2 youth, 3 months/$2,091; Travel - Staff mileage to meet with youth - 3 months/$914.89
A32: ='INVOICE 1'!A32:B32 -> Professional Services | C32: 0
A33: ='INVOICE 1'!A33:B33 -> NGO Subcontracts | C33: 0
A34: ='INVOICE 1'!A34:B34 -> Indirect Costs/Administrative | C34: 0
A35: ='INVOICE 1'!A35:B35 -> Equipment/Fixed Assets | C35: 0
A36: ='INVOICE 1'!A36:B36 -> Project Evaluation & Data Collection | C36: 0
A37: ='INVOICE 1'!A37:B37 -> Other (include travel costs) | C37: 0
A38: PERSON PREPARING REPORT | E38: AUTHORIZED FINANCIAL OFFICER | K38: BSCC Supplier Data - Internal Use Only
E39: I hereby certify that I am the authorized financial officer of the herein named agency. I further certify that I have not violated any of the provisions of Section 1090 of the Government Code in incurring the expenditures reported in this request for payment, nor in any other way; that Sections 1090 through 1096 of the Government Code will not be violated in any way in the expenditure of funds pursuant to this request; that statement of funds above is true, correct, and in accordance with program provisions in all respects; and that all funds requested after the expiration date of this contract are for the purpose of liquidating obligations legally incurred under the life of this contract. By signing this report, I certify to the best of my knowledge and belief that the report is true, complete, and accurate, and the expenditures, disbursements and cash receipts are for the purposes and objectives set forth in the terms and conditions of the Federal award. I am aware that any false, fictitious, or fraudulent information, or the omission of any material fact, may subject me to criminal, civil or administrative penalties for fraud, false statements, false claims or otherwise. (U.S. Code Title 18, Section 1001 and Title 31, Sections 3729–3730 and 3801–3812).Furthermore, by submitting this invoice, I acknowledge that it must adhere to all of the requirements in the BSCC Grant Administration Guide, including any updates to the Guide during the term of the grant agreement.
A40: Kayla Cameron, Finance Director | K40: ='INVOICE 1'!K40:M40 -> 107816
A41: Name, Title | K41: ='INVOICE 1'!K41:M41 -> Supplier ID
A42: 6286294475 | K42: ='INVOICE 1'!K42:M42 -> CNTR FOR YOUNG WOMENS DEV
A43: Phone | K43: ='INVOICE 1'!K43:M43 -> Supplier Name
A44: kayla@youngwomenfree.org | K44: ='INVOICE 1'!K44:M44 -> 832 Folsom Street, Suite 700
A45: Email | K45: ='INVOICE 1'!K45:M45 -> Address Line 1
A46: 2020-11-10 | K46: ='INVOICE 1'!K46:M46 -> San Francisco, CA 94107
A47: Date | K47: ='INVOICE 1'!K47:M47 -> Address Line 2
E49: Jessica Nowlan, Executive Director
E50: Name, Title
E51: 510-689-7310
E52: Phone
E53: 2020-11-13
E54: Date
A56: BSCC USE ONLY
A57: Date Received: | C57: 2020-11-13 | G57: Approved By: | I57: Timothy J. Polasik, 12/8/2020
I58: BSCC Field Representative, Date

Sheet INVOICE 4
A1: STATE OF CALIFORNIA | K1: Purchase Authority | L1: BSCC-5227
A2: BOARD OF STATE AND COMMUNITY CORRECTIONS | K2: Purchase Order: | M2: ='INVOICE 3'!M2 -> 5227-0000003044
A3: Financial Invoice Form: BSCC 201 (Revised 04/2020)
A5: Program: | B5: ='INVOICE 1'!B5 -> TITLE II | J5: Please Note: The California State Controller's Office will send all checks directly to the address listed in the "BSCC Vendor Data" section at the bottom of this invoice.
A7: Grantee: | B7: ='INVOICE 1'!B7 -> Center for Young Women's Development DBA Young Women's Freedom Center
A9: Contract #: | B9: ='INVOICE 1'!B9 -> BSCC 309-19 | D9: Term: | E9: ='INVOICE 1'!E9 -> 2019-12-01 | F9: TO | G9: ='INVOICE 1'!G9 -> 2022-11-30 | K9: Invoicing Frequency | L9: QUARTERLY
A11: Invoice #: | B11: 4 TITLE II 2019 | D11: Reporting Period: | E11: 2020-10-01 | F11: TO | G11: 2020-12-31 | H11: Due: | I11: 2021-02-15 | K11: Final Invoice (Y/N): | L11: No
A13: Line Items | B13: Budget | E13: Prior Expenditures | H13: This Reporting Period | K13: Balance
A14: ='INVOICE 1'!A14 -> Salaries & Benefits | C14: ='INVOICE 1'!C14 -> 316440 | F14: ='INVOICE 3'!F14+'INVOICE 3'!I14 -> 73500 | I14: 25100 | L14: =C14-F14-I14 -> 217840
A15: ='INVOICE 1'!A15 -> Services & Supplies | C15: ='INVOICE 1'!C15 -> 283500 | F15: ='INVOICE 3'!F15+'INVOICE 3'!I15 -> 50136 | I15: 17720 | L15: =C15-F15-I15 -> 215644
A16: ='INVOICE 1'!A16 -> Professional Services | C16: ='INVOICE 1'!C16 -> 0 | F16: ='INVOICE 3'!F16+'INVOICE 3'!I16 -> 0 | I16: 0 | L16: 0
A17: ='INVOICE 1'!A17 -> NGO Subcontracts | C17: ='INVOICE 1'!C17 -> 420060 | F17: ='INVOICE 3'!F17+'INVOICE 3'!I17 -> 0 | I17: 97182 | L17: 322878
A18: ='INVOICE 1'!A18 -> Indirect Costs / Administrative Costs | C18: ='INVOICE 1'!C18 -> 0 | F18: ='INVOICE 3'!F18+'INVOICE 3'!I18 -> 0 | I18: 0 | L18: 0
A19: ='INVOICE 1'!A19 -> Equipment / Fixed Assets | C19: ='INVOICE 1'!C19 -> 0 | F19: ='INVOICE 3'!F19+'INVOICE 3'!I19 -> 0 | I19: 0 | L19: 0
A20: ='INVOICE 1'!A20 -> Project Evaluation & Data Collection | C20: ='INVOICE 1'!C20 -> 30000 | F20: ='INVOICE 3'!F20+'INVOICE 3'!I20 -> 0 | I20: 10000 | L20: 20000
A21: ='INVOICE 1'!A21 -> Other (include travel costs) | C21: ='INVOICE 1'!C21 -> 0 | F21: ='INVOICE 3'!F21+'INVOICE 3'!I21 -> 0 | I21: 0 | L21: 0
A22: TOTAL | C22: =SUM(C14:C21) -> 1050000 | F22: =SUM(F14:F21) -> 123636 | I22: =SUM(I14:I21) -> 150002 | L22: =SUM(L14:L21) -> 776362
A24: Project Income | C24: Income reported to date | D24: ='INVOICE 3'!D24+'INVOICE 4'!I24 -> 0 | F24: Prior allocated income | G24: 0 | H24: This Period | I24: 0 | L24: Unallocated income balance | M24: =D24-G24 -> 0
C26: Grant funds expended to date: | D26: =F22+I22 -> 273638 | G26: Grant funds claimed this period: | H26: =I22 -> 150002 | L26: Percentage Grant $$ expended to date: | M26: =D26/C22 -> 0.260607619
D29: Expenditure Descriptions - Units / $ Amounts | L29: Comments
A30: ='INVOICE 1'!A30:B30 -> Salaries & Benefits | C30: =I14 -> 25100 | D30: 1 FTE Program Manager + 26% benefits - 3 months/$10920 0.5 FTE Peer Advocate x 2 positions - 3 months/$10400 0.075 FTE Program Evaluation Director + 26% benefits - 3 months/$1260 .01 FTE Executive Director + 26% benefits -3 months/$2520
A31: ='INVOICE 1'!A31:B31 -> Services & Supplies | C31: =I15 -> 17720 | D31: Youth Honorarium - 7 youth, 3 months/$17720 | L31: Please note that there is no crossover or duplication of youth or expenditures between the subcontractor honorarium and the lead agency honorarium line items.
A32: ='INVOICE 1'!A32:B32 -> Professional Services | C32: 0
A33: ='INVOICE 1'!A33:B33 -> NGO Subcontracts | C33: 97182 | D33: 0.3 FTE Community Release Coordinator + 20% benefits - 12 months/18662 0.5 FTE Community Navigator + 20% benefits - 6 months/13530 Youth Honorariums - 12 months/$64432 Overhead - 12 months/$2558 | L33: Please note that there is no crossover or duplication of youth or expenditures between the subcontractor honorarium and the lead agency honorarium line items.
A34: ='INVOICE 1'!A34:B34 -> Indirect Costs/Administrative | C34: 0
A35: ='INVOICE 1'!A35:B35 -> Equipment/Fixed Assets | C35: 0
A36: ='INVOICE 1'!A36:B36 -> Project Evaluation & Data Collection | C36: 10000 | D36: New York University Project Evaluation & Data Collection - 12 months/$10000
A37: ='INVOICE 1'!A37:B37 -> Other (include travel costs) | C37: 0
A38: PERSON PREPARING REPORT | E38: AUTHORIZED FINANCIAL OFFICER | K38: BSCC Supplier Data - Internal Use Only
E39: I hereby certify that I am the authorized financial officer of the herein named agency. I further certify that I have not violated any of the provisions of Section 1090 of the Government Code in incurring the expenditures reported in this request for payment, nor in any other way; that Sections 1090 through 1096 of the Government Code will not be violated in any way in the expenditure of funds pursuant to this request; that statement of funds above is true, correct, and in accordance with program provisions in all respects; and that all funds requested after the expiration date of this contract are for the purpose of liquidating obligations legally incurred under the life of this contract. By signing this report, I certify to the best of my knowledge and belief that the report is true, complete, and accurate, and the expenditures, disbursements and cash receipts are for the purposes and objectives set forth in the terms and conditions of the Federal award. I am aware that any false, fictitious, or fraudulent information, or the omission of any material fact, may subject me to criminal, civil or administrative penalties for fraud, false statements, false claims or otherwise. (U.S. Code Title 18, Section 1001 and Title 31, Sections 3729–3730 and 3801–3812).Furthermore, by submitting this invoice, I acknowledge that it must adhere to all of the requirements in the BSCC Grant Administration Guide, including any updates to the Guide during the term of the grant agreement.
A40: Kayla Cameron, Finance Director | K40: ='INVOICE 1'!K40:M40 -> 107816
A41: Name, Title | K41: ='INVOICE 1'!K41:M41 -> Supplier ID
A42: 6286284475 | K42: ='INVOICE 1'!K42:M42 -> CNTR FOR YOUNG WOMENS DEV
A43: Phone | K43: ='INVOICE 1'!K43:M43 -> Supplier Name
A44: kayla@youngwomenfree.org | K44: ='INVOICE 1'!K44:M44 -> 832 Folsom Street, Suite 700
A45: Email | K45: ='INVOICE 1'!K45:M45 -> Address Line 1
A46: 2021-02-19 | K46: ='INVOICE 1'!K46:M46 -> San Francisco, CA 94107
A47: Date | K47: ='INVOICE 1'!K47:M47 -> Address Line 2
E49: Jessica Nowlan, Executive Director
E50: Name, Title
E51: 4157038800
E52: Phone
E53: 2021-02-19
E54: Date
A56: BSCC USE ONLY
A57: Date Received: | C57: 2021-04-09 | G57: Approved By: | I57: Timothy J. Polasik, 4/30/2021
I58: BSCC Field Representative, Date

Sheet INVOICE 5
A1: STATE OF CALIFORNIA | K1: Purchase Authority | L1: BSCC-5227
A2: BOARD OF STATE AND COMMUNITY CORRECTIONS | K2: Purchase Order: | M2: ='INVOICE 4'!M2 -> 5227-0000003044
A3: Financial Invoice Form: BSCC 201 (Revised 04/2020)
A5: Program: | B5: ='INVOICE 1'!B5 -> TITLE II | J5: Please Note: The California State Controller's Office will send all checks directly to the address listed in the "BSCC Vendor Data" section at the bottom of this invoice.
A7: Grantee: | B7: ='INVOICE 1'!B7 -> Center for Young Women's Development DBA Young Women's Freedom Center
A9: Contract #: | B9: ='INVOICE 1'!B9 -> BSCC 309-19 | D9: Term: | E9: ='INVOICE 1'!E9 -> 2019-12-01 | F9: TO | G9: ='INVOICE 1'!G9 -> 2022-11-30 | K9: Invoicing Frequency | L9: QUARTERLY
A11: Invoice #: | B11: 5 TITLE II 2019 | D11: Reporting Period: | E11: 2021-01-01 | F11: TO | G11: 2021-03-31 | H11: Due: | I11: 2021-05-15 | K11: Final Invoice (Y/N): | L11: No
A13: Line Items | B13: Budget | E13: Prior Expenditures | H13: This Reporting Period | K13: Balance
A14: ='INVOICE 1'!A14 -> Salaries & Benefits | C14: ='INVOICE 4'!C14 -> 316440 | F14: ='INVOICE 4'!F14+'INVOICE 4'!I14 -> 98600 | I14: 29891 | L14: =C14-F14-I14 -> 187949
A15: ='INVOICE 1'!A15 -> Services & Supplies | C15: ='INVOICE 4'!C15 -> 283500 | F15: ='INVOICE 4'!F15+'INVOICE 4'!I15 -> 67856 | I15: 21294 | L15: =C15-F15-I15 -> 194350
A16: ='INVOICE 1'!A16 -> Professional Services | C16: ='INVOICE 4'!C16 -> 0 | F16: ='INVOICE 4'!F16+'INVOICE 4'!I16 -> 0 | I16: 0 | L16: 0
A17: ='INVOICE 1'!A17 -> NGO Subcontracts | C17: ='INVOICE 4'!C17 -> 420060 | F17: ='INVOICE 4'!F17+'INVOICE 4'!I17 -> 97182 | I17: 0 | L17: 322878
A18: ='INVOICE 1'!A18 -> Indirect Costs / Administrative Costs | C18: ='INVOICE 4'!C18 -> 0 | F18: ='INVOICE 4'!F18+'INVOICE 4'!I18 -> 0 | I18: 0 | L18: 0
A19: ='INVOICE 1'!A19 -> Equipment / Fixed Assets | C19: ='INVOICE 4'!C19 -> 0 | F19: ='INVOICE 4'!F19+'INVOICE 4'!I19 -> 0 | I19: 0 | L19: 0
A20: ='INVOICE 1'!A20 -> Project Evaluation & Data Collection | C20: ='INVOICE 4'!C20 -> 30000 | F20: ='INVOICE 4'!F20+'INVOICE 4'!I20 -> 10000 | I20: 0 | L20: 20000
A21: ='INVOICE 1'!A21 -> Other (include travel costs) | C21: ='INVOICE 4'!C21 -> 0 | F21: ='INVOICE 4'!F21+'INVOICE 4'!I21 -> 0 | I21: 0 | L21: 0
A22: TOTAL | C22: =SUM(C14:C21) -> 1050000 | F22: =SUM(F14:F21) -> 273638 | I22: =SUM(I14:I21) -> 51185 | L22: =SUM(L14:L21) -> 725177
A24: Project Income | C24: Income reported to date | D24: ='INVOICE 3'!D24+'INVOICE 5'!I24 -> 0 | F24: Prior allocated income | G24: 0 | H24: This Period | I24: 0 | L24: Unallocated income balance | M24: =D24-G24 -> 0
C26: Grant funds expended to date: | D26: =F22+I22 -> 324823 | G26: Grant funds claimed this period: | H26: =I22 -> 51185 | L26: Percentage Grant $$ expended to date: | M26: =D26/C22 -> 0.3093552381
D29: Expenditure Descriptions - Units / $ Amounts | L29: Comments
A30: ='INVOICE 1'!A30:B30 -> Salaries & Benefits | C30: =I14 -> 29891 | D30: 1 FTE Program Manager + 26% benefits - 3 months/$16380; 0.5 FTE Peer Advocate x 2 positions - 3 months/$7841; 0.075 FTE Program Evaluation Director + 26% benefits - 3 months/$1890; .01 FTE Executive Director + 26% benefits -3 months/$3780
A31: ='INVOICE 1'!A31:B31 -> Services & Supplies | C31: =I15 -> 21294 | D31: Youth Honorarium - 6 youth, 3 months/$20437.74; Travel - Program Manager mileage costs to meet with youth, 3 months/$661.58; Training Materials - Program supplies, 3 months/$194.83
A32: ='INVOICE 1'!A32:B32 -> Professional Services | C32: 0
A33: ='INVOICE 1'!A33:B33 -> NGO Subcontracts | C33: 0
A34: ='INVOICE 1'!A34:B34 -> Indirect Costs/Administrative | C34: 0
A35: ='INVOICE 1'!A35:B35 -> Equipment/Fixed Assets | C35: 0
A36: ='INVOICE 1'!A36:B36 -> Project Evaluation & Data Collection | C36: 0
A37: ='INVOICE 1'!A37:B37 -> Other (include travel costs) | C37: 0
A38: PERSON PREPARING REPORT | E38: AUTHORIZED FINANCIAL OFFICER | K38: BSCC Supplier Data - Internal Use Only
E39: I hereby certify that I am the authorized financial officer of the herein named agency. I further certify that I have not violated any of the provisions of Section 1090 of the Government Code in incurring the expenditures reported in this request for payment, nor in any other way; that Sections 1090 through 1096 of the Government Code will not be violated in any way in the expenditure of funds pursuant to this request; that statement of funds above is true, correct, and in accordance with program provisions in all respects; and that all funds requested after the expiration date of this contract are for the purpose of liquidating obligations legally incurred under the life of this contract. By signing this report, I certify to the best of my knowledge and belief that the report is true, complete, and accurate, and the expenditures, disbursements and cash receipts are for the purposes and objectives set forth in the terms and conditions of the Federal award. I am aware that any false, fictitious, or fraudulent information, or the omission of any material fact, may subject me to criminal, civil or administrative penalties for fraud, false statements, false claims or otherwise. (U.S. Code Title 18, Section 1001 and Title 31, Sections 3729–3730 and 3801–3812).Furthermore, by submitting this invoice, I acknowledge that it must adhere to all of the requirements in the BSCC Grant Administration Guide, including any updates to the Guide during the term of the grant agreement.
A40: Kayla Cameron, Finance Director | K40: ='INVOICE 1'!K40:M40 -> 107816
A41: Name, Title | K41: ='INVOICE 1'!K41:M41 -> Supplier ID
A42: 628-629-4475 | K42: ='INVOICE 1'!K42:M42 -> CNTR FOR YOUNG WOMENS DEV
A43: Phone | K43: ='INVOICE 1'!K43:M43 -> Supplier Name
A44: kayla@youngwomenfree.org | K44: ='INVOICE 1'!K44:M44 -> 832 Folsom Street, Suite 700
A45: Email | K45: ='INVOICE 1'!K45:M45 -> Address Line 1
A46: 2021-05-06 | K46: ='INVOICE 1'!K46:M46 -> San Francisco, CA 94107
A47: Date | K47: ='INVOICE 1'!K47:M47 -> Address Line 2
E49: Jessica Nowlan, Executive Director
E50: Name, Title
E51: 415-703-8800
E52: Phone
E53: 2021-05-14
E54: Date
A56: BSCC USE ONLY
A57: Date Received: | C57: 2021-05-17 | G57: Approved By: | I57: Timothy Polasik, 6/4/21
I58: BSCC Field Representative, Date

Sheet INVOICE 6
A1: STATE OF CALIFORNIA | K1: Purchase Authority | L1: BSCC-5227
A2: BOARD OF STATE AND COMMUNITY CORRECTIONS | K2: Purchase Order: | M2: ='INVOICE 5'!M2 -> 5227-0000003044
A3: Financial Invoice Form: BSCC 201 (Revised 04/2020) | M3: 5227-0000003411
A5: Program: | B5: ='INVOICE 1'!B5 -> TITLE II | J5: Please Note: The California State Controller's Office will send all checks directly to the address listed in the "BSCC Vendor Data" section at the bottom of this invoice.
A7: Grantee: | B7: ='INVOICE 1'!B7 -> Center for Young Women's Development DBA Young Women's Freedom Center
A9: Contract #: | B9: ='INVOICE 1'!B9 -> BSCC 309-19 | D9: Term: | E9: ='INVOICE 1'!E9 -> 2019-12-01 | F9: TO | G9: ='INVOICE 1'!G9 -> 2022-11-30 | K9: Invoicing Frequency | L9: QUARTERLY
A11: Invoice #: | B11: 6 TITLE II 2019 | D11: Reporting Period: | E11: 2021-04-01 | F11: TO | G11: 2021-06-30 | H11: Due: | I11: 2021-08-15 | K11: Final Invoice (Y/N): | L11: No
A13: Line Items | B13: Budget | E13: Prior Expenditures | H13: This Reporting Period | K13: Balance
A14: ='INVOICE 1'!A14 -> Salaries & Benefits | C14: ='INVOICE 5'!C14 -> 316440 | F14: ='INVOICE 5'!F14+'INVOICE 5'!I14 -> 128491 | I14: 26295 | L14: =C14-F14-I14 -> 161654
A15: ='INVOICE 1'!A15 -> Services & Supplies | C15: ='INVOICE 5'!C15 -> 283500 | F15: ='INVOICE 5'!F15+'INVOICE 5'!I15 -> 89150 | I15: 20019 | L15: =C15-F15-I15 -> 174331
A16: ='INVOICE 1'!A16 -> Professional Services | C16: ='INVOICE 5'!C16 -> 0 | F16: ='INVOICE 5'!F16+'INVOICE 5'!I16 -> 0 | I16: 0 | L16: 0
A17: ='INVOICE 1'!A17 -> NGO Subcontracts | C17: ='INVOICE 5'!C17 -> 420060 | F17: ='INVOICE 5'!F17+'INVOICE 5'!I17 -> 97182 | I17: 21100 | L17: 301778
A18: ='INVOICE 1'!A18 -> Indirect Costs / Administrative Costs | C18: ='INVOICE 5'!C18 -> 0 | F18: ='INVOICE 5'!F18+'INVOICE 5'!I18 -> 0 | I18: 0 | L18: 0
A19: ='INVOICE 1'!A19 -> Equipment / Fixed Assets | C19: ='INVOICE 5'!C19 -> 0 | F19: ='INVOICE 5'!F19+'INVOICE 5'!I19 -> 0 | I19: 0 | L19: 0
A20: ='INVOICE 1'!A20 -> Project Evaluation & Data Collection | C20: ='INVOICE 5'!C20 -> 30000 | F20: ='INVOICE 5'!F20+'INVOICE 5'!I20 -> 10000 | I20: 0 | L20: 20000
A21: ='INVOICE 1'!A21 -> Other (include travel costs) | C21: ='INVOICE 5'!C21 -> 0 | F21: ='INVOICE 5'!F21+'INVOICE 5'!I21 -> 0 | I21: 0 | L21: 0
A22: TOTAL | C22: =SUM(C14:C21) -> 1050000 | F22: =SUM(F14:F21) -> 324823 | I22: =SUM(I14:I21) -> 67414 | L22: =SUM(L14:L21) -> 657763
A24: Project Income | C24: Income reported to date | D24: ='INVOICE 3'!D24+'INVOICE 6'!I24 -> 0 | F24: Prior allocated income | G24: 0 | H24: This Period | I24: 0 | L24: Unallocated income balance | M24: =D24-G24 -> 0
C26: Grant funds expended to date: | D26: =F22+I22 -> 392237 | G26: Grant funds claimed this period: | H26: =I22 -> 67414 | L26: Percentage Grant $$ expended to date: | M26: =D26/C22 -> 0.3735590476
D29: Expenditure Descriptions - Units / $ Amounts | L29: Comments
A30: ='INVOICE 1'!A30:B30 -> Salaries & Benefits | C30: =I14 -> 26295 | D30: 1 FTE Program Manager + 26% benefits - 3 months/$16380; 0.5 FTE - 3 months/$4245; 0.075 FTE Program Evaluation Director + 26% benefits - 3 months/$1890; .01 FTE Executive Director + 26% benefits -3 months/$3780
A31: ='INVOICE 1'!A31:B31 -> Services & Supplies | C31: =I15 -> 20019 | D31: Youth Honorarium - 6 youth, 3 months/$18189; Travel - Program Manager & staff mileage costs to meet with youth, 3 months/$1148.79; Training Materials - Chromebooks for youth, 3 months/$681.66
A32: ='INVOICE 1'!A32:B32 -> Professional Services | C32: 0
A33: ='INVOICE 1'!A33:B33 -> NGO Subcontracts | C33: 21100 | D33: De-Bug Community Release Coordinator - 3 months/3497.82; De-Bug Community Navigator - 3 months/3788.70; De-Bug Youth Honorariums - 3 months/12697.28; De-Bug Overhead - 3 months/1116
A34: ='INVOICE 1'!A34:B34 -> Indirect Costs/Administrative | C34: 0
A35: ='INVOICE 1'!A35:B35 -> Equipment/Fixed Assets | C35: 0
A36: ='INVOICE 1'!A36:B36 -> Project Evaluation & Data Collection | C36: 0
A37: ='INVOICE 1'!A37:B37 -> Other (include travel costs) | C37: 0
A38: PERSON PREPARING REPORT | E38: AUTHORIZED FINANCIAL OFFICER | K38: BSCC Supplier Data - Internal Use Only
E39: I hereby certify that I am the authorized financial officer of the herein named agency. I further certify that I have not violated any of the provisions of Section 1090 of the Government Code in incurring the expenditures reported in this request for payment, nor in any other way; that Sections 1090 through 1096 of the Government Code will not be violated in any way in the expenditure of funds pursuant to this request; that statement of funds above is true, correct, and in accordance with program provisions in all respects; and that all funds requested after the expiration date of this contract are for the purpose of liquidating obligations legally incurred under the life of this contract. By signing this report, I certify to the best of my knowledge and belief that the report is true, complete, and accurate, and the expenditures, disbursements and cash receipts are for the purposes and objectives set forth in the terms and conditions of the Federal award. I am aware that any false, fictitious, or fraudulent information, or the omission of any material fact, may subject me to criminal, civil or administrative penalties for fraud, false statements, false claims or otherwise. (U.S. Code Title 18, Section 1001 and Title 31, Sections 3729–3730 and 3801–3812).Furthermore, by submitting this invoice, I acknowledge that it must adhere to all of the requirements in the BSCC Grant Administration Guide, including any updates to the Guide during the term of the grant agreement.
A40: Kayla Cameron, Finance Director | K40: ='INVOICE 1'!K40:M40 -> 107816
A41: Name, Title | K41: ='INVOICE 1'!K41:M41 -> Supplier ID
A42: 628-629-4475 | K42: ='INVOICE 1'!K42:M42 -> CNTR FOR YOUNG WOMENS DEV
A43: Phone | K43: ='INVOICE 1'!K43:M43 -> Supplier Name
A44: kayla@youngwomenfree.org | K44: ='INVOICE 1'!K44:M44 -> 832 Folsom Street, Suite 700
A45: Email | K45: ='INVOICE 1'!K45:M45 -> Address Line 1
A46: 2021-08-13 | K46: ='INVOICE 1'!K46:M46 -> San Francisco, CA 94107
A47: Date | K47: ='INVOICE 1'!K47:M47 -> Address Line 2
A49: This invoice is split on 2 PO's | E49: Abigail Richards, Deputy Director
A50: PO 5227-0000003044 | B50: 14768 | E50: Name, Title
A51: PO 5227-0000003411 | B51: 52646 | E51: 415-703-8800
A52: Total | B52: =SUM(B50:B51) -> 67414 | E52: Phone
E53: 2021-08-26
E54: Date
A56: BSCC USE ONLY
A57: Date Received: | G57: Approved By: | I57: Timothy J. Polasik, 9/1/2021
I58: BSCC Field Representative, Date

Sheet INVOICE 7
A1: STATE OF CALIFORNIA | K1: Purchase Authority | L1: BSCC-5227
A2: BOARD OF STATE AND COMMUNITY CORRECTIONS | K2: Purchase Order: | M2: 5227-0000003411
A3: Financial Invoice Form: BSCC 201 (Revised 04/2020)
A5: Program: | B5: ='INVOICE 1'!B5 -> TITLE II | J5: Please Note: The California State Controller's Office will send all checks directly to the address listed in the "BSCC Vendor Data" section at the bottom of this invoice.
A7: Grantee: | B7: ='INVOICE 1'!B7 -> Center for Young Women's Development DBA Young Women's Freedom Center
A9: Contract #: | B9: ='INVOICE 1'!B9 -> BSCC 309-19 | D9: Term: | E9: ='INVOICE 1'!E9 -> 2019-12-01 | F9: TO | G9: ='INVOICE 1'!G9 -> 2022-11-30 | K9: Invoicing Frequency | L9: QUARTERLY
A11: Invoice #: | B11: 7 TITLE II 2019 | D11: Reporting Period: | E11: 2021-07-01 | F11: TO | G11: 2021-09-30 | H11: Due: | I11: 2021-11-15 | K11: Final Invoice (Y/N): | L11: No
A13: Line Items | B13: Budget | E13: Prior Expenditures | H13: This Reporting Period | K13: Balance
A14: ='INVOICE 1'!A14 -> Salaries & Benefits | C14: ='INVOICE 6'!C14 -> 316440 | F14: ='INVOICE 6'!F14+'INVOICE 6'!I14 -> 154786 | I14: 26699 | L14: =C14-F14-I14 -> 134955
A15: ='INVOICE 1'!A15 -> Services & Supplies | C15: ='INVOICE 6'!C15 -> 283500 | F15: ='INVOICE 6'!F15+'INVOICE 6'!I15 -> 109169 | I15: 5077 | L15: =C15-F15-I15 -> 169254
A16: ='INVOICE 1'!A16 -> Professional Services | C16: ='INVOICE 6'!C16 -> 0 | F16: ='INVOICE 6'!F16+'INVOICE 6'!I16 -> 0 | I16: 0 | L16: 0
A17: ='INVOICE 1'!A17 -> NGO Subcontracts | C17: ='INVOICE 6'!C17 -> 420060 | F17: ='INVOICE 6'!F17+'INVOICE 6'!I17 -> 118282 | I17: 22643 | L17: 279135
A18: ='INVOICE 1'!A18 -> Indirect Costs / Administrative Costs | C18: ='INVOICE 6'!C18 -> 0 | F18: ='INVOICE 6'!F18+'INVOICE 6'!I18 -> 0 | I18: 0 | L18: 0
A19: ='INVOICE 1'!A19 -> Equipment / Fixed Assets | C19: ='INVOICE 6'!C19 -> 0 | F19: ='INVOICE 6'!F19+'INVOICE 6'!I19 -> 0 | I19: 0 | L19: 0
A20: ='INVOICE 1'!A20 -> Project Evaluation & Data Collection | C20: ='INVOICE 6'!C20 -> 30000 | F20: ='INVOICE 6'!F20+'INVOICE 6'!I20 -> 10000 | I20: 0 | L20: 20000
A21: ='INVOICE 1'!A21 -> Other (include travel costs) | C21: ='INVOICE 6'!C21 -> 0 | F21: ='INVOICE 6'!F21+'INVOICE 6'!I21 -> 0 | I21: 0 | L21: 0
A22: TOTAL | C22: =SUM(C14:C21) -> 1050000 | F22: =SUM(F14:F21) -> 392237 | I22: =SUM(I14:I21) -> 54419 | L22: =SUM(L14:L21) -> 603344
A24: Project Income | C24: Income reported to date | D24: ='INVOICE 3'!D24+'INVOICE 7'!I24 -> 0 | F24: Prior allocated income | G24: 0 | H24: This Period | I24: 0 | L24: Unallocated income balance | M24: =D24-G24 -> 0
C26: Grant funds expended to date: | D26: =F22+I22 -> 446656 | G26: Grant funds claimed this period: | H26: =I22 -> 54419 | L26: Percentage Grant $$ expended to date: | M26: =D26/C22 -> 0.4253866667
D29: Expenditure Descriptions - Units / $ Amounts | L29: Comments
A30: ='INVOICE 1'!A30:B30 -> Salaries & Benefits | C30: =I14 -> 26699 | D30: 1 FTE Program Manager + 26% benefits - 3 months/$16380; 0.5 FTE Peer Advocate/Coach - 3 months/$4648.50; 0.075 FTE Program Evaluation Director + 26% benefits - 3 months/$1890; .01 FTE Executive Director + 26% benefits -3 months/$3780
A31: ='INVOICE 1'!A31:B31 -> Services & Supplies | C31: =I15 -> 5077 | D31: Youth Honorarium - 1 youth, 3 months/$4347; Travel - Program Manager & staff mileage costs to meet with youth, 3 months/$729.70
A32: ='INVOICE 1'!A32:B32 -> Professional Services | C32: 0
A33: ='INVOICE 1'!A33:B33 -> NGO Subcontracts | C33: 22643 | D33: De-Bug Community Release Coordinator - 3 months/3483.10; De-Bug Community Navigator - 3 months/4079.86; De-Bug Youth Honorariums - 3 months/13977.61; De-Bug Overhead - 3 months/1102.50
A34: ='INVOICE 1'!A34:B34 -> Indirect Costs/Administrative | C34: 0
A35: ='INVOICE 1'!A35:B35 -> Equipment/Fixed Assets | C35: 0
A36: ='INVOICE 1'!A36:B36 -> Project Evaluation & Data Collection | C36: 0
A37: ='INVOICE 1'!A37:B37 -> Other (include travel costs) | C37: 0
A38: PERSON PREPARING REPORT | E38: AUTHORIZED FINANCIAL OFFICER | K38: BSCC Supplier Data - Internal Use Only
E39: I hereby certify that I am the authorized financial officer of the herein named agency. I further certify that I have not violated any of the provisions of Section 1090 of the Government Code in incurring the expenditures reported in this request for payment, nor in any other way; that Sections 1090 through 1096 of the Government Code will not be violated in any way in the expenditure of funds pursuant to this request; that statement of funds above is true, correct, and in accordance with program provisions in all respects; and that all funds requested after the expiration date of this contract are for the purpose of liquidating obligations legally incurred under the life of this contract. By signing this report, I certify to the best of my knowledge and belief that the report is true, complete, and accurate, and the expenditures, disbursements and cash receipts are for the purposes and objectives set forth in the terms and conditions of the Federal award. I am aware that any false, fictitious, or fraudulent information, or the omission of any material fact, may subject me to criminal, civil or administrative penalties for fraud, false statements, false claims or otherwise. (U.S. Code Title 18, Section 1001 and Title 31, Sections 3729–3730 and 3801–3812).Furthermore, by submitting this invoice, I acknowledge that it must adhere to all of the requirements in the BSCC Grant Administration Guide, including any updates to the Guide during the term of the grant agreement.
A40: Kayla Cameron, Finance Director | K40: ='INVOICE 1'!K40:M40 -> 107816
A41: Name, Title | K41: ='INVOICE 1'!K41:M41 -> Supplier ID
A42: 628-629-4475 | K42: ='INVOICE 1'!K42:M42 -> CNTR FOR YOUNG WOMENS DEV
A43: Phone | K43: ='INVOICE 1'!K43:M43 -> Supplier Name
A44: kayla@youngwomenfree.og | K44: ='INVOICE 1'!K44:M44 -> 832 Folsom Street, Suite 700
A45: Email | K45: ='INVOICE 1'!K45:M45 -> Address Line 1
A46: 2021-11-09 | K46: ='INVOICE 1'!K46:M46 -> San Francisco, CA 94107
A47: Date | K47: ='INVOICE 1'!K47:M47 -> Address Line 2
E49: Abigail Richards, Deputy Director
E50: Name, Title
E51: 415-703-8800
E52: Phone
E53: 2021-11-09
E54: Date
A56: BSCC USE ONLY
A57: Date Received: | C57: 2021-11-15 | G57: Approved By: | I57: Timothy J. Polasik, 11/19/2021
I58: BSCC Field Representative, Date

Sheet INVOICE 8
A1: STATE OF CALIFORNIA | K1: Purchase Authority | L1: BSCC-5227
A2: BOARD OF STATE AND COMMUNITY CORRECTIONS | K2: Purchase Order: | M2: ='INVOICE 7'!M2 -> 5227-0000003411
A3: Financial Invoice Form: BSCC 201 (Revised 04/2020)
A5: Program: | B5: ='INVOICE 1'!B5 -> TITLE II | J5: Please Note: The California State Controller's Office will send all checks directly to the address listed in the "BSCC Vendor Data" section at the bottom of this invoice.
A7: Grantee: | B7: ='INVOICE 1'!B7 -> Center for Young Women's Development DBA Young Women's Freedom Center
A9: Contract #: | B9: ='INVOICE 1'!B9 -> BSCC 309-19 | D9: Term: | E9: ='INVOICE 1'!E9 -> 2019-12-01 | F9: TO | G9: ='INVOICE 1'!G9 -> 2022-11-30 | K9: Invoicing Frequency | L9: QUARTERLY
A11: Invoice #: | B11: 8 TITLE II 2019 | D11: Reporting Period: | E11: 2021-10-01 | F11: TO | G11: 2021-12-31 | H11: Due: | I11: 2022-02-15 | K11: Final Invoice (Y/N): | L11: No
A13: Line Items | B13: Budget | E13: Prior Expenditures | H13: This Reporting Period | K13: Balance
A14: ='INVOICE 1'!A14 -> Salaries & Benefits | C14: ='INVOICE 7'!C14 -> 316440 | F14: ='INVOICE 7'!F14+'INVOICE 7'!I14 -> 181485 | I14: 27720 | L14: =C14-F14-I14 -> 107235
A15: ='INVOICE 1'!A15 -> Services & Supplies | C15: ='INVOICE 7'!C15 -> 283500 | F15: ='INVOICE 7'!F15+'INVOICE 7'!I15 -> 114246 | I15: 285 | L15: =C15-F15-I15 -> 168969
A16: ='INVOICE 1'!A16 -> Professional Services | C16: ='INVOICE 7'!C16 -> 0 | F16: ='INVOICE 7'!F16+'INVOICE 7'!I16 -> 0 | I16: 0 | L16: 0
A17: ='INVOICE 1'!A17 -> NGO Subcontracts | C17: ='INVOICE 7'!C17 -> 420060 | F17: ='INVOICE 7'!F17+'INVOICE 7'!I17 -> 140925 | I17: 46917 | L17: 232218
A18: ='INVOICE 1'!A18 -> Indirect Costs / Administrative Costs | C18: ='INVOICE 7'!C18 -> 0 | F18: ='INVOICE 7'!F18+'INVOICE 7'!I18 -> 0 | I18: 0 | L18: 0
A19: ='INVOICE 1'!A19 -> Equipment / Fixed Assets | C19: ='INVOICE 7'!C19 -> 0 | F19: ='INVOICE 7'!F19+'INVOICE 7'!I19 -> 0 | I19: 0 | L19: 0
A20: ='INVOICE 1'!A20 -> Project Evaluation & Data Collection | C20: ='INVOICE 7'!C20 -> 30000 | F20: ='INVOICE 7'!F20+'INVOICE 7'!I20 -> 10000 | I20: 10000 | L20: 10000
A21: ='INVOICE 1'!A21 -> Other (include travel costs) | C21: ='INVOICE 7'!C21 -> 0 | F21: ='INVOICE 7'!F21+'INVOICE 7'!I21 -> 0 | I21: 0 | L21: 0
A22: TOTAL | C22: =SUM(C14:C21) -> 1050000 | F22: =SUM(F14:F21) -> 446656 | I22: =SUM(I14:I21) -> 84922 | L22: =SUM(L14:L21) -> 518422
A24: Project Income | C24: Income reported to date | D24: ='INVOICE 3'!D24+'INVOICE 8'!I24 -> 0 | F24: Prior allocated income | G24: 0 | H24: This Period | I24: 0 | L24: Unallocated income balance | M24: =D24-G24 -> 0
C26: Grant funds expended to date: | D26: =F22+I22 -> 531578 | G26: Grant funds claimed this period: | H26: =I22 -> 84922 | L26: Percentage Grant $$ expended to date: | M26: =D26/C22 -> 0.5062647619
D29: Expenditure Descriptions - Units / $ Amounts | L29: Comments
A30: ='INVOICE 1'!A30:B30 -> Salaries & Benefits | C30: =I14 -> 27720 | D30: 1 FTE Program Manager + 26% benefits - 3 months/$16380; 0.5 FTE Peer Advocate/Coach - 3 months/$5670; 0.075 FTE Program Evaluation Director + 26% benefits - 3 months/$1890; .01 FTE Executive Director + 26% benefits -3 months/$3780
A31: ='INVOICE 1'!A31:B31 -> Services & Supplies | C31: =I15 -> 285 | D31: Travel - Peer Advocate & staff transportation costs to meet with youth, 3 months/$285
A32: ='INVOICE 1'!A32:B32 -> Professional Services | C32: 0
A33: ='INVOICE 1'!A33:B33 -> NGO Subcontracts | C33: 46917 | D33: De-Bug Community Release Coordinator - 6 months/11218.46; De-Bug Community Navigator - 6 months/20941.44; De-Bug Youth Honorariums - 6 months/14417.48; De-Bug Overhead - 6 months/339.50
A34: ='INVOICE 1'!A34:B34 -> Indirect Costs/Administrative | C34: 0
A35: ='INVOICE 1'!A35:B35 -> Equipment/Fixed Assets | C35: 0
A36: ='INVOICE 1'!A36:B36 -> Project Evaluation & Data Collection | C36: 10000 | D36: New York University - Data collection and evaluation services/12 months - $10000.00
A37: ='INVOICE 1'!A37:B37 -> Other (include travel costs) | C37: 0
A38: PERSON PREPARING REPORT | E38: AUTHORIZED FINANCIAL OFFICER | K38: BSCC Supplier Data - Internal Use Only
E39: I hereby certify that I am the authorized financial officer of the herein named agency. I further certify that I have not violated any of the provisions of Section 1090 of the Government Code in incurring the expenditures reported in this request for payment, nor in any other way; that Sections 1090 through 1096 of the Government Code will not be violated in any way in the expenditure of funds pursuant to this request; that statement of funds above is true, correct, and in accordance with program provisions in all respects; and that all funds requested after the expiration date of this contract are for the purpose of liquidating obligations legally incurred under the life of this contract. By signing this report, I certify to the best of my knowledge and belief that the report is true, complete, and accurate, and the expenditures, disbursements and cash receipts are for the purposes and objectives set forth in the terms and conditions of the Federal award. I am aware that any false, fictitious, or fraudulent information, or the omission of any material fact, may subject me to criminal, civil or administrative penalties for fraud, false statements, false claims or otherwise. (U.S. Code Title 18, Section 1001 and Title 31, Sections 3729–3730 and 3801–3812).Furthermore, by submitting this invoice, I acknowledge that it must adhere to all of the requirements in the BSCC Grant Administration Guide, including any updates to the Guide during the term of the grant agreement.
A40: Kayla Cameron, Finance Director | K40: ='INVOICE 1'!K40:M40 -> 107816
A41: Name, Title | K41: ='INVOICE 1'!K41:M41 -> Supplier ID
A42: 6286294475 | K42: ='INVOICE 1'!K42:M42 -> CNTR FOR YOUNG WOMENS DEV
A43: Phone | K43: ='INVOICE 1'!K43:M43 -> Supplier Name
A44: kayla@younwomenfree.org | K44: ='INVOICE 1'!K44:M44 -> 832 Folsom Street, Suite 700
A45: Email | K45: ='INVOICE 1'!K45:M45 -> Address Line 1
A46: 2022-02-09 | K46: ='INVOICE 1'!K46:M46 -> San Francisco, CA 94107
A47: Date | K47: ='INVOICE 1'!K47:M47 -> Address Line 2
E49: Abigail Richards, Deputy Director
E50: Name, Title
E51: 4157038800
E52: Phone
E53: 2002-02-14
E54: Date
A56: BSCC USE ONLY
A57: Date Received: | C57: 2022-02-18 | G57: Approved By: | I57: Timothy J. Polasik, 3/1/2022
I58: BSCC Field Representative, Date

Sheet INVOICE 9
A1: STATE OF CALIFORNIA | K1: Purchase Authority | L1: BSCC-5227
A2: BOARD OF STATE AND COMMUNITY CORRECTIONS | K2: Purchase Order: | M2: ='INVOICE 8'!M2 -> 5227-0000003411
A3: Financial Invoice Form: BSCC 201 (Revised 04/2020) | L3: 5227-0000003750
A5: Program: | B5: ='INVOICE 1'!B5 -> TITLE II | J5: Please Note: The California State Controller's Office will send all checks directly to the address listed in the "BSCC Vendor Data" section at the bottom of this invoice.
A7: Grantee: | B7: ='INVOICE 1'!B7 -> Center for Young Women's Development DBA Young Women's Freedom Center
A9: Contract #: | B9: ='INVOICE 1'!B9 -> BSCC 309-19 | D9: Term: | E9: ='INVOICE 1'!E9 -> 2019-12-01 | F9: TO | G9: ='INVOICE 1'!G9 -> 2022-11-30 | K9: Invoicing Frequency | L9: QUARTERLY
A11: Invoice #: | B11: 9 TITLE II 2019 | D11: Reporting Period: | E11: 2022-01-01 | F11: TO | G11: 2022-03-31 | H11: Due: | I11: 2022-05-15 | K11: Final Invoice (Y/N): | L11: No
A13: Line Items | B13: Budget | E13: Prior Expenditures | H13: This Reporting Period | K13: Balance
A14: ='INVOICE 1'!A14 -> Salaries & Benefits | C14: ='INVOICE 8'!C14 -> 316440 | F14: ='INVOICE 8'!F14+'INVOICE 8'!I14 -> 209205 | I14: 32242 | L14: =C14-F14-I14 -> 74993
A15: ='INVOICE 1'!A15 -> Services & Supplies | C15: ='INVOICE 8'!C15 -> 283500 | F15: ='INVOICE 8'!F15+'INVOICE 8'!I15 -> 114531 | I15: 2621 | L15: =C15-F15-I15 -> 166348
A16: ='INVOICE 1'!A16 -> Professional Services | C16: ='INVOICE 8'!C16 -> 0 | F16: ='INVOICE 8'!F16+'INVOICE 8'!I16 -> 0 | I16: 0 | L16: 0
A17: ='INVOICE 1'!A17 -> NGO Subcontracts | C17: ='INVOICE 8'!C17 -> 420060 | F17: ='INVOICE 8'!F17+'INVOICE 8'!I17 -> 187842 | I17: 14271 | L17: 217947
A18: ='INVOICE 1'!A18 -> Indirect Costs / Administrative Costs | C18: ='INVOICE 8'!C18 -> 0 | F18: ='INVOICE 8'!F18+'INVOICE 8'!I18 -> 0 | I18: 0 | L18: 0
A19: ='INVOICE 1'!A19 -> Equipment / Fixed Assets | C19: ='INVOICE 8'!C19 -> 0 | F19: ='INVOICE 8'!F19+'INVOICE 8'!I19 -> 0 | I19: 0 | L19: 0
A20: ='INVOICE 1'!A20 -> Project Evaluation & Data Collection | C20: ='INVOICE 8'!C20 -> 30000 | F20: ='INVOICE 8'!F20+'INVOICE 8'!I20 -> 20000 | I20: 0 | L20: 10000
A21: ='INVOICE 1'!A21 -> Other (include travel costs) | C21: ='INVOICE 8'!C21 -> 0 | F21: ='INVOICE 8'!F21+'INVOICE 8'!I21 -> 0 | I21: 0 | L21: 0
A22: TOTAL | C22: =SUM(C14:C21) -> 1050000 | F22: =SUM(F14:F21) -> 531578 | I22: =SUM(I14:I21) -> 49134 | L22: =SUM(L14:L21) -> 469288
A24: Project Income | C24: Income reported to date | D24: ='INVOICE 3'!D24+'INVOICE 9'!I24 -> 0 | F24: Prior allocated income | G24: 0 | H24: This Period | I24: 0 | L24: Unallocated income balance | M24: =D24-G24 -> 0
C26: Grant funds expended to date: | D26: =F22+I22 -> 580712 | G26: Grant funds claimed this period: | H26: =I22 -> 49134 | L26: Percentage Grant $$ expended to date: | M26: =D26/C22 -> 0.5530590476
D29: Expenditure Descriptions - Units / $ Amounts | L29: Comments
A30: ='INVOICE 1'!A30:B30 -> Salaries & Benefits | C30: =I14 -> 32242 | D30: 1 FTE Program Manager + 26% benefits - 3 months/$16380; 1 FTE Peer Advocate/Coach - 3 months/$10192; 0.075 FTE Program Evaluation Director + 26% benefits - 3 months/$1890; 0.01 FTE Executive Director + 26% benefits -3 months/$3780
A31: ='INVOICE 1'!A31:B31 -> Services & Supplies | C31: =I15 -> 2621 | D31: Youth Honorarium - 3 youth, 3 months/$1125.00; Travel - Peer Advocate & staff transportation costs to meet with youth, 3 months/$159.19; Training materals - supplies for youth programming needs, 3 months/$1338.05
A32: ='INVOICE 1'!A32:B32 -> Professional Services | C32: 0
A33: ='INVOICE 1'!A33:B33 -> NGO Subcontracts | C33: 14271 | D33: De-Bug Youth Honorariums - 3 months/$14271.47
A34: ='INVOICE 1'!A34:B34 -> Indirect Costs/Administrative | C34: 0
A35: ='INVOICE 1'!A35:B35 -> Equipment/Fixed Assets | C35: 0
A36: ='INVOICE 1'!A36:B36 -> Project Evaluation & Data Collection | C36: 0
A37: ='INVOICE 1'!A37:B37 -> Other (include travel costs) | C37: 0
A38: PERSON PREPARING REPORT | E38: AUTHORIZED FINANCIAL OFFICER | K38: BSCC Supplier Data - Internal Use Only
E39: I hereby certify that I am the authorized financial officer of the herein named agency. I further certify that I have not violated any of the provisions of Section 1090 of the Government Code in incurring the expenditures reported in this request for payment, nor in any other way; that Sections 1090 through 1096 of the Government Code will not be violated in any way in the expenditure of funds pursuant to this request; that statement of funds above is true, correct, and in accordance with program provisions in all respects; and that all funds requested after the expiration date of this contract are for the purpose of liquidating obligations legally incurred under the life of this contract. By signing this report, I certify to the best of my knowledge and belief that the report is true, complete, and accurate, and the expenditures, disbursements and cash receipts are for the purposes and objectives set forth in the terms and conditions of the Federal award. I am aware that any false, fictitious, or fraudulent information, or the omission of any material fact, may subject me to criminal, civil or administrative penalties for fraud, false statements, false claims or otherwise. (U.S. Code Title 18, Section 1001 and Title 31, Sections 3729–3730 and 3801–3812).Furthermore, by submitting this invoice, I acknowledge that it must adhere to all of the requirements in the BSCC Grant Administration Guide, including any updates to the Guide during the term of the grant agreement.
A40: Kayla Cameron, Finance Director | K40: ='INVOICE 1'!K40:M40 -> 107816
A41: Name, Title | K41: ='INVOICE 1'!K41:M41 -> Supplier ID
A42: 628-629-4475 | K42: ='INVOICE 1'!K42:M42 -> CNTR FOR YOUNG WOMENS DEV
A43: Phone | K43: ='INVOICE 1'!K43:M43 -> Supplier Name
A44: kayla@youngwomenfree.org | K44: ='INVOICE 1'!K44:M44 -> 832 Folsom Street, Suite 700
A45: Email | K45: ='INVOICE 1'!K45:M45 -> Address Line 1
A46: 2022-05-16 | K46: ='INVOICE 1'!K46:M46 -> San Francisco, CA 94107
A47: Date | K47: ='INVOICE 1'!K47:M47 -> Address Line 2
E49: Abigail Richards, Deputy Director
E50: Name, Title
E51: 4157038800
E52: Phone
E53: 2022-08-03
E54: Date
A56: BSCC USE ONLY
A57: Date Received: | C57: 2022-08-03 | G57: Approved By: | I57: Timothy Polasik, 8/19/22
I58: BSCC Field Representative, Date

Sheet INVOICE 10
A1: STATE OF CALIFORNIA | K1: Purchase Authority | L1: BSCC-5227
A2: BOARD OF STATE AND COMMUNITY CORRECTIONS | K2: Purchase Order: | M2: ='INVOICE 9'!M2 -> 5227-0000003411
A3: Financial Invoice Form: BSCC 201 (Revised 04/2020) | M3: 5227-0000003750
A5: Program: | B5: ='INVOICE 1'!B5 -> TITLE II | J5: Please Note: The California State Controller's Office will send all checks directly to the address listed in the "BSCC Vendor Data" section at the bottom of this invoice.
A7: Grantee: | B7: ='INVOICE 1'!B7 -> Center for Young Women's Development DBA Young Women's Freedom Center
A9: Contract #: | B9: ='INVOICE 1'!B9 -> BSCC 309-19 | D9: Term: | E9: ='INVOICE 1'!E9 -> 2019-12-01 | F9: TO | G9: ='INVOICE 1'!G9 -> 2022-11-30 | K9: Invoicing Frequency | L9: QUARTERLY
A11: Invoice #: | B11: 10 TITLE II 2019 | D11: Reporting Period: | E11: 2022-04-01 | F11: TO | G11: 2022-06-30 | H11: Due: | I11: 2022-08-15 | K11: Final Invoice (Y/N): | L11: No
A13: Line Items | B13: Budget | E13: Prior Expenditures | H13: This Reporting Period | K13: Balance
A14: ='INVOICE 1'!A14 -> Salaries & Benefits | C14: ='INVOICE 9'!C14 -> 316440 | F14: ='INVOICE 9'!F14+'INVOICE 9'!I14 -> 241447 | I14: 26370 | L14: =C14-F14-I14 -> 48623
A15: ='INVOICE 1'!A15 -> Services & Supplies | C15: ='INVOICE 9'!C15 -> 283500 | F15: ='INVOICE 9'!F15+'INVOICE 9'!I15 -> 117152 | I15: 13850 | L15: =C15-F15-I15 -> 152498
A16: ='INVOICE 1'!A16 -> Professional Services | C16: ='INVOICE 9'!C16 -> 0 | F16: ='INVOICE 9'!F16+'INVOICE 9'!I16 -> 0 | I16: 0 | L16: 0
A17: ='INVOICE 1'!A17 -> NGO Subcontracts | C17: ='INVOICE 9'!C17 -> 420060 | F17: ='INVOICE 9'!F17+'INVOICE 9'!I17 -> 202113 | I17: 0 | L17: 217947
A18: ='INVOICE 1'!A18 -> Indirect Costs / Administrative Costs | C18: ='INVOICE 9'!C18 -> 0 | F18: ='INVOICE 9'!F18+'INVOICE 9'!I18 -> 0 | I18: 0 | L18: 0
A19: ='INVOICE 1'!A19 -> Equipment / Fixed Assets | C19: ='INVOICE 9'!C19 -> 0 | F19: ='INVOICE 9'!F19+'INVOICE 9'!I19 -> 0 | I19: 0 | L19: 0
A20: ='INVOICE 1'!A20 -> Project Evaluation & Data Collection | C20: ='INVOICE 9'!C20 -> 30000 | F20: ='INVOICE 9'!F20+'INVOICE 9'!I20 -> 20000 | I20: 0 | L20: 10000
A21: ='INVOICE 1'!A21 -> Other (include travel costs) | C21: ='INVOICE 9'!C21 -> 0 | F21: ='INVOICE 9'!F21+'INVOICE 9'!I21 -> 0 | I21: 0 | L21: 0
A22: TOTAL | C22: =SUM(C14:C21) -> 1050000 | F22: =SUM(F14:F21) -> 580712 | I22: =SUM(I14:I21) -> 40220 | L22: =SUM(L14:L21) -> 429068
A24: Project Income | C24: Income reported to date | D24: ='INVOICE 3'!D24+'INVOICE 10'!I24 -> 0 | F24: Prior allocated income | G24: 0 | H24: This Period | I24: 0 | L24: Unallocated income balance | M24: =D24-G24 -> 0
C26: Grant funds expended to date: | D26: =F22+I22 -> 620932 | G26: Grant funds claimed this period: | H26: =I22 -> 40220 | L26: Percentage Grant $$ expended to date: | M26: =D26/C22 -> 0.5913638095
D29: Expenditure Descriptions - Units / $ Amounts | L29: Comments
A30: ='INVOICE 1'!A30:B30 -> Salaries & Benefits | C30: =I14 -> 26370 | D30: 1 FTE Program Manager + 26% benefits - 3 months/$16380; 1 FTE Peer Advocate/Coach - 3 months/$4320; 0.075 FTE Program Evaluation Director + 26% benefits - 3 months/$1890; .01 FTE Executive Director + 26% benefits -3 months/$3780
A31: ='INVOICE 1'!A31:B31 -> Services & Supplies | C31: =I15 -> 13850 | D31: Youth Honorarium - 5 youth, 3 months/$12415.50; Travel - Peer Advocate & staff transportation costs to meet with youth, 3 months/$1434.09 | L31: Travel expensed this was since invoice 3; grantee was not advised to do a mod.
A32: ='INVOICE 1'!A32:B32 -> Professional Services | C32: 0
A33: ='INVOICE 1'!A33:B33 -> NGO Subcontracts | C33: 0
A34: ='INVOICE 1'!A34:B34 -> Indirect Costs/Administrative | C34: 0
A35: ='INVOICE 1'!A35:B35 -> Equipment/Fixed Assets | C35: 0
A36: ='INVOICE 1'!A36:B36 -> Project Evaluation & Data Collection | C36: 0
A37: ='INVOICE 1'!A37:B37 -> Other (include travel costs) | C37: 0
A38: PERSON PREPARING REPORT | E38: AUTHORIZED FINANCIAL OFFICER | K38: BSCC Supplier Data - Internal Use Only
E39: I hereby certify that I am the authorized financial officer of the herein named agency. I further certify that I have not violated any of the provisions of Section 1090 of the Government Code in incurring the expenditures reported in this request for payment, nor in any other way; that Sections 1090 through 1096 of the Government Code will not be violated in any way in the expenditure of funds pursuant to this request; that statement of funds above is true, correct, and in accordance with program provisions in all respects; and that all funds requested after the expiration date of this contract are for the purpose of liquidating obligations legally incurred under the life of this contract. By signing this report, I certify to the best of my knowledge and belief that the report is true, complete, and accurate, and the expenditures, disbursements and cash receipts are for the purposes and objectives set forth in the terms and conditions of the Federal award. I am aware that any false, fictitious, or fraudulent information, or the omission of any material fact, may subject me to criminal, civil or administrative penalties for fraud, false statements, false claims or otherwise. (U.S. Code Title 18, Section 1001 and Title 31, Sections 3729–3730 and 3801–3812).Furthermore, by submitting this invoice, I acknowledge that it must adhere to all of the requirements in the BSCC Grant Administration Guide, including any updates to the Guide during the term of the grant agreement.
A40: Kayla Cameron, Finance Director | K40: ='INVOICE 1'!K40:M40 -> 107816
A41: Name, Title | K41: ='INVOICE 1'!K41:M41 -> Supplier ID
A42: 628-629-4475 | K42: ='INVOICE 1'!K42:M42 -> CNTR FOR YOUNG WOMENS DEV
A43: Phone | K43: ='INVOICE 1'!K43:M43 -> Supplier Name
A44: kayla@youngwomenfree.org | K44: ='INVOICE 1'!K44:M44 -> 832 Folsom Street, Suite 700
A45: Email | K45: ='INVOICE 1'!K45:M45 -> Address Line 1
A46: 2022-08-15 | K46: ='INVOICE 1'!K46:M46 -> San Francisco, CA 94107
A47: Date | K47: ='INVOICE 1'!K47:M47 -> Address Line 2
E49: Abigail Richards, Deputy Director
E50: Name, Title
E51: 415-703-8800
E52: Phone
E53: 2022-08-15
E54: Date
A56: BSCC USE ONLY
A57: Date Received: | C57: 2022-08-15 | G57: Approved By: | I57: Timothy Polasik, 8/25/22
I58: BSCC Field Representative, Date

Sheet INVOICE 11
A1: STATE OF CALIFORNIA | K1: Purchase Authority | L1: BSCC-5227
A2: BOARD OF STATE AND COMMUNITY CORRECTIONS | K2: Purchase Order: | M2: 5227-0000003750
A3: Financial Invoice Form: BSCC 201 (Revised 04/2020)
A5: Program: | B5: ='INVOICE 1'!B5 -> TITLE II | J5: Please Note: The California State Controller's Office will send all checks directly to the address listed in the "BSCC Vendor Data" section at the bottom of this invoice.
A7: Grantee: | B7: ='INVOICE 1'!B7 -> Center for Young Women's Development DBA Young Women's Freedom Center
A9: Contract #: | B9: ='INVOICE 1'!B9 -> BSCC 309-19 | D9: Term: | E9: ='INVOICE 1'!E9 -> 2019-12-01 | F9: TO | G9: ='INVOICE 1'!G9 -> 2022-11-30 | K9: Invoicing Frequency | L9: QUARTERLY
A11: Invoice #: | B11: 11 TITLE II 2019 | D11: Reporting Period: | E11: 2022-07-01 | F11: TO | G11: 2022-09-30 | H11: Due: | I11: 2022-11-15 | K11: Final Invoice (Y/N): | L11: No
A13: Line Items | B13: Budget | E13: Prior Expenditures | H13: This Reporting Period | K13: Balance
A14: ='INVOICE 1'!A14 -> Salaries & Benefits | C14: ='INVOICE 10'!C14 -> 316440 | F14: ='INVOICE 10'!F14+'INVOICE 10'!I14 -> 267817 | I14: 25324 | L14: =C14-F14-I14 -> 23299
A15: ='INVOICE 1'!A15 -> Services & Supplies | C15: ='INVOICE 10'!C15 -> 283500 | F15: ='INVOICE 10'!F15+'INVOICE 10'!I15 -> 131002 | I15: 29625 | L15: =C15-F15-I15 -> 122873
A16: ='INVOICE 1'!A16 -> Professional Services | C16: ='INVOICE 10'!C16 -> 0 | F16: ='INVOICE 10'!F16+'INVOICE 10'!I16 -> 0 | I16: 0 | L16: 0
A17: ='INVOICE 1'!A17 -> NGO Subcontracts | C17: ='INVOICE 10'!C17 -> 420060 | F17: ='INVOICE 10'!F17+'INVOICE 10'!I17 -> 202113 | I17: 23992 | L17: 193955
A18: ='INVOICE 1'!A18 -> Indirect Costs / Administrative Costs | C18: ='INVOICE 10'!C18 -> 0 | F18: ='INVOICE 10'!F18+'INVOICE 10'!I18 -> 0 | I18: 0 | L18: 0
A19: ='INVOICE 1'!A19 -> Equipment / Fixed Assets | C19: ='INVOICE 10'!C19 -> 0 | F19: ='INVOICE 10'!F19+'INVOICE 10'!I19 -> 0 | I19: 0 | L19: 0
A20: ='INVOICE 1'!A20 -> Project Evaluation & Data Collection | C20: ='INVOICE 10'!C20 -> 30000 | F20: ='INVOICE 10'!F20+'INVOICE 10'!I20 -> 20000 | I20: 0 | L20: 10000
A21: ='INVOICE 1'!A21 -> Other (include travel costs) | C21: ='INVOICE 10'!C21 -> 0 | F21: ='INVOICE 10'!F21+'INVOICE 10'!I21 -> 0 | I21: 0 | L21: 0
A22: TOTAL | C22: =SUM(C14:C21) -> 1050000 | F22: =SUM(F14:F21) -> 620932 | I22: =SUM(I14:I21) -> 78941 | L22: =SUM(L14:L21) -> 350127
A24: Project Income | C24: Income reported to date | D24: ='INVOICE 3'!D24+'INVOICE 11'!I24 -> 0 | F24: Prior allocated income | G24: 0 | H24: This Period | I24: 0 | L24: Unallocated income balance | M24: =D24-G24 -> 0
C26: Grant funds expended to date: | D26: =F22+I22 -> 699873 | G26: Grant funds claimed this period: | H26: =I22 -> 78941 | L26: Percentage Grant $$ expended to date: | M26: =D26/C22 -> 0.6665457143
D29: Expenditure Descriptions - Units / $ Amounts | L29: Comments
A30: ='INVOICE 1'!A30:B30 -> Salaries & Benefits | C30: =I14 -> 25324 | D30: 1 FTE Program Manager + 26% benefits - 3 months/$16380; 1 FTE Peer Advocate/Coach - 3 months/$1384; 0.1 FTE Program Evaluation Director + 26% benefits - 3 months/$3780; .01 FTE Executive Director + 26% benefits -3 months/$3780
A31: ='INVOICE 1'!A31:B31 -> Services & Supplies | C31: =I15 -> 29625 | D31: Youth Honorarium - 17 youth, 3 months/$28732; Travel - youth transportation costs to/from program site, 3 months/$892.73
A32: ='INVOICE 1'!A32:B32 -> Professional Services | C32: 0
A33: ='INVOICE 1'!A33:B33 -> NGO Subcontracts | C33: 23992 | D33: De-Bug Community Release Coordinator - 3 months/$2275.49; De-Bug Community Navigator - 3 months/$4181.96; De-Bug Youth Honorariums - 3 months/$16603.05; De-Bug Overhead - 3 months/931.50
A34: ='INVOICE 1'!A34:B34 -> Indirect Costs/Administrative | C34: 0
A35: ='INVOICE 1'!A35:B35 -> Equipment/Fixed Assets | C35: 0
A36: ='INVOICE 1'!A36:B36 -> Project Evaluation & Data Collection | C36: 0
A37: ='INVOICE 1'!A37:B37 -> Other (include travel costs) | C37: 0
A38: PERSON PREPARING REPORT | E38: AUTHORIZED FINANCIAL OFFICER | K38: BSCC Supplier Data - Internal Use Only
E39: I hereby certify that I am the authorized financial officer of the herein named agency. I further certify that I have not violated any of the provisions of Section 1090 of the Government Code in incurring the expenditures reported in this request for payment, nor in any other way; that Sections 1090 through 1096 of the Government Code will not be violated in any way in the expenditure of funds pursuant to this request; that statement of funds above is true, correct, and in accordance with program provisions in all respects; and that all funds requested after the expiration date of this contract are for the purpose of liquidating obligations legally incurred under the life of this contract. By signing this report, I certify to the best of my knowledge and belief that the report is true, complete, and accurate, and the expenditures, disbursements and cash receipts are for the purposes and objectives set forth in the terms and conditions of the Federal award. I am aware that any false, fictitious, or fraudulent information, or the omission of any material fact, may subject me to criminal, civil or administrative penalties for fraud, false statements, false claims or otherwise. (U.S. Code Title 18, Section 1001 and Title 31, Sections 3729–3730 and 3801–3812).Furthermore, by submitting this invoice, I acknowledge that it must adhere to all of the requirements in the BSCC Grant Administration Guide, including any updates to the Guide during the term of the grant agreement.
A40: Kayla Cameron, Finance Director | K40: ='INVOICE 1'!K40:M40 -> 107816
A41: Name, Title | K41: ='INVOICE 1'!K41:M41 -> Supplier ID
A42: 628-629-4475 | K42: ='INVOICE 1'!K42:M42 -> CNTR FOR YOUNG WOMENS DEV
A43: Phone | K43: ='INVOICE 1'!K43:M43 -> Supplier Name
A44: kayla@youngwomenfree.org | K44: ='INVOICE 1'!K44:M44 -> 832 Folsom Street, Suite 700
A45: Email | K45: ='INVOICE 1'!K45:M45 -> Address Line 1
A46: 2022-11-15 | K46: ='INVOICE 1'!K46:M46 -> San Francisco, CA 94107
A47: Date | K47: ='INVOICE 1'!K47:M47 -> Address Line 2
E49: Abigail Richards, Co-Executive Director
E50: Name, Title
E51: 415-703-8800
E52: Phone
E53: 2023-05-18
E54: Date
A56: BSCC USE ONLY
A57: Date Received: | C57: 2023-05-24 | G57: Approved By: | I57: Timothy Polasik, 5/31/2023
I58: BSCC Field Representative, Date

Sheet MOD 1
M1: STATE OF CALIFORNIA
A2: MODIFICATION REQUEST - (FORM BSCC 223.1 (Revised 1/23) | M2: BOARD OF STATE AND COMMUNITY CORRECTIONS
A5: Please mark an "X" in the green cell to indicate which type of budget modification you want to select.
B7: Line-Item Change | F7: Budget Modification | J7: Project Income Allocation
B8: Select this option if you are modifying narrative details within a line item (or line items) but not changing the budget. | F8: Select ths option if you are modifying line-item dollar amounts by moving funds from one line-item to another. | J8: Select this option if you are allocating earned project income.
A10: Important Note: You must provide a detailed justification for all modification requests. All modifications require BSCC Field Representative approval.
A12: Grantee: | B12: Center for Young Women's Development DBA Young Women's Freedom Center | I12: Grant Program: | J12: TITLE II
A14: Address | B14: 832 Folsom Street, Suite 700
B16: San Francisco, CA 94107
A18: Contract #: | B18: BSCC 309-19 | J18: Modification Request # | K18: 1
A20: Term: | B20: 2019-12-01 | C20: TO | D20: 2023-06-30 | J20: Effective on Invoice # | K20: 12
A22: Line Items | B22: Current Budget | E22: Available Budget | H22: Changes (+/-) | K22: Modified Budget
A23: Salaries & Benefits | C23: 316440 | F23: 48623 | I23: 25890 | L23: 342330
A24: Services & Supplies | C24: 283500 | F24: 152498 | I24: -25890 | L24: 257610
A25: Professional Services | C25: 0 | F25: 0 | I25: 0 | L25: 0
A26: NGO Subcontracts | C26: 420060 | F26: 217947 | I26: 0 | L26: 420060
A27: Indirect Costs/Administrative Costs | C27: 0 | F27: 0 | I27: 0 | L27: 0
A28: Equipment / Fixed Assets | C28: 0 | F28: 0 | I28: 0 | L28: 0
A29: Project Evaluation & Data Collection | C29: 30000 | F29: 10000 | I29: 0 | L29: 30000
A30: Other (include travel costs) | C30: 0 | F30: 0 | I30: 0 | L30: 0
A31: TOTAL | C31: 1050000 | F31: 429068 | I31: 0 | L31: 1050000
A33: Project Income | C33: Income reported to date | D33: 0 | F33: Prior allocated income | G33: 0 | H33: Allocating | I33: 0 | L33: Unallocated income balance | M33: 0
A35: JUSTIFICATION FOR MODIFICATION:
A36: CYWD is requesting a budget modification effective 10/1/22. We are proposing to move $25,890 from Services and Supplies to Personnel; this amount is coming from our calculation of $74,468.85 in underspent funds in Services and Supplies in Years 1 and 2. The need for additional funds in Personnel is due to the fact that CYWD has significantly increased wages for grant-funded positions since 2019, and underspendng in Services and Supplies is due to COVID-related delays and program changes. Total modified Personnel = $342,330.00 (Program Manager 0.75 FTE @ $90,000 annual + .26 fringe $216,090; Peer Advocate $22/hr x 20 hrs/week x 48 weeks $55680; Program Evaluation Director .075 FTE @ $80,000 + benefits @ 26% $22680; Co-Exective Director 0.1 FTE @ $140,000 annual + .26 fringe $47880) Total modified Services & Supplies $257,610.00 (Youth Honorariums $4,990/year x 15 youth = $74,850 + benefits @ 5% = $209,910; Travel $450 parking+ 1500 in SOR transit stipends + 1065 offsite transit/travel/parking + 2485 already charged Y3 = $35,500; Training Materials $190/month x 15 months = $4650; Community Events $3k for end of program graduation celebration = $3000; Insurance [allowable portion of org-wide insurance necessary for program] $4550) Total modified Direct Service Provider Contracts = $420,060.00 (no modification) Total modified Project Evaluation & Data Collection = $30,000.00 (NYU $10k per year x 3 years = $30000)
A60: PERSON PREPARING REPORT | H60: AUTHORIZED FINANCIAL OFFICER
H61: I hereby certify that I am the authorized financial officer of the herein named agency. I further certify that I have not violated any of the provisions of Section 1090 of the Government Code in incurring the expenditures reported in this request for payment, nor in any other way; that Sections 1090 through 1096 of the Government Code will not be violated in any way in the expenditure of funds pursuant to this request; that statement of funds above is true, correct, and in accordance with program provisions in all respects; and that all funds requested after the expiration date of this contract are for the purpose of liquidating obligations legally incurred under the life of this contract. By signing this report, I certify to the best of my knowledge and belief that the report is true, complete, and accurate, and the expenditures, disbursements and cash receipts are for the purposes and objectives set forth in the terms and conditions of the Federal award. I am aware that any false, fictitious, or fraudulent information, or the omission of any material fact, may subject me to criminal, civil or administrative penalties for fraud, false statements, false claims or otherwise. (U.S. Code Title 18, Section 1001 and Title 31, Sections 3729–3730 and 3801–3812).Furthermore, by submitting this invoice, I acknowledge that it must adhere to all of the requirements in the BSCC Grant Administration Guide, including any updates to the Guide during the term of the grant agreement.
A62: Kayla Cameron, Finance Director
A63: Name, Title
A64: 628-629-4475
A65: Phone
A66: kayla@youngwomenfree.org
A67: Email
A68: 2023-03-30
A69: Date
H71: Abigail Richards, Co-Executive Director
H72: Name, Title
H73: 415-703-8800
H74: Phone
H75: 2023-03-30
H76: Date
I77: Certified via Email - 3/31/2023 | J77: Please initial here to certify the submission of this budget modification.
A80: BSCC USE ONLY
A81: Date Received: | C81: 2023-03-31 | H81: Approved By: | I81: Timothy Polasik | L81: Date: | M81: 2023-04-12
I82: BSCC Field Representative

Sheet INVOICE 12
A1: STATE OF CALIFORNIA | K1: Purchase Authority | L1: BSCC-5227
A2: BOARD OF STATE AND COMMUNITY CORRECTIONS | K2: Purchase Order: | M2: ='INVOICE 11'!M2 -> 5227-0000003750
A3: Financial Invoice Form: BSCC 201 (Revised 04/2020)
A5: Program: | B5: ='INVOICE 1'!B5 -> TITLE II | J5: Please Note: The California State Controller's Office will send all checks directly to the address listed in the "BSCC Vendor Data" section at the bottom of this invoice.
A7: Grantee: | B7: ='INVOICE 1'!B7 -> Center for Young Women's Development DBA Young Women's Freedom Center
A9: Contract #: | B9: ='INVOICE 1'!B9 -> BSCC 309-19 | D9: Term: | E9: ='INVOICE 1'!E9 -> 2019-12-01 | F9: TO | G9: 2023-06-30 | K9: Invoicing Frequency | L9: QUARTERLY
A11: Invoice #: | B11: 12 TITLE II 2019 | D11: Reporting Period: | E11: 2022-10-01 | F11: TO | G11: 2022-12-31 | H11: Due: | I11: 2023-01-15 | K11: Final Invoice (Y/N): | L11: No
A13: Line Items | B13: Budget | E13: Prior Expenditures | H13: This Reporting Period | K13: Balance
A14: ='INVOICE 1'!A14 -> Salaries & Benefits | C14: 342330 | F14: ='INVOICE 11'!F14+'INVOICE 11'!I14 -> 293141 | I14: 22524 | L14: =C14-F14-I14 -> 26665
A15: ='INVOICE 1'!A15 -> Services & Supplies | C15: 257610 | F15: ='INVOICE 11'!F15+'INVOICE 11'!I15 -> 160627 | I15: 48351 | L15: =C15-F15-I15 -> 48632
A16: ='INVOICE 1'!A16 -> Professional Services | C16: 0 | F16: ='INVOICE 11'!F16+'INVOICE 11'!I16 -> 0 | I16: 0 | L16: 0
A17: ='INVOICE 1'!A17 -> NGO Subcontracts | C17: 420060 | F17: ='INVOICE 11'!F17+'INVOICE 11'!I17 -> 226105 | I17: 21684 | L17: 172271
A18: ='INVOICE 1'!A18 -> Indirect Costs / Administrative Costs | C18: 0 | F18: ='INVOICE 11'!F18+'INVOICE 11'!I18 -> 0 | I18: 0 | L18: 0
A19: ='INVOICE 1'!A19 -> Equipment / Fixed Assets | C19: 0 | F19: ='INVOICE 11'!F19+'INVOICE 11'!I19 -> 0 | I19: 0 | L19: 0
A20: ='INVOICE 1'!A20 -> Project Evaluation & Data Collection | C20: 30000 | F20: ='INVOICE 11'!F20+'INVOICE 11'!I20 -> 20000 | I20: 0 | L20: 10000
A21: ='INVOICE 1'!A21 -> Other (include travel costs) | C21: 0 | F21: ='INVOICE 11'!F21+'INVOICE 11'!I21 -> 0 | I21: 0 | L21: 0
A22: TOTAL | C22: =SUM(C14:C21) -> 1050000 | F22: =SUM(F14:F21) -> 699873 | I22: =SUM(I14:I21) -> 92559 | L22: =SUM(L14:L21) -> 257568
A24: Project Income | C24: Income reported to date | D24: ='INVOICE 3'!D24+'INVOICE 12'!I24 -> 0 | F24: Prior allocated income | G24: 0 | H24: This Period | I24: 0 | L24: Unallocated income balance | M24: =D24-G24 -> 0
C26: Grant funds expended to date: | D26: =F22+I22 -> 792432 | G26: Grant funds claimed this period: | H26: =I22 -> 92559 | L26: Percentage Grant $$ expended to date: | M26: =D26/C22 -> 0.7546971429
D29: Expenditure Descriptions - Units / $ Amounts | L29: Comments
A30: ='INVOICE 1'!A30:B30 -> Salaries & Benefits | C30: =I14 -> 22524 | D30: 0.75 FTE Program Manager + 26% benefits - 3 months/$17955; 1 FTE Peer Advocate/Coach - 1 months/$1418.50; 0.1 FTE Program Evaluation Director + 26% benefits - 0 months/$0; .01 FTE Executive Director + 26% benefits -3 months/$3150
A31: ='INVOICE 1'!A31:B31 -> Services & Supplies | C31: =I15 -> 48351 | D31: Youth Honorarium - 13 youth, 3 months/$45120; Travel - youth transportation costs to/from program site, 3 months/$731.43; Insurance - organizational insurance, grant-funded portion, 3 months/$2500
A32: ='INVOICE 1'!A32:B32 -> Professional Services | C32: 0
A33: ='INVOICE 1'!A33:B33 -> NGO Subcontracts | C33: 21684 | D33: De-Bug Community Release Coordinator - 3 months/$2401.41; De-Bug Community Navigator - 3 months/$5806.98; De-Bug Youth Honorariums - 3 months/$12896.99; De-Bug Overhead - 3 months/578.87
A34: ='INVOICE 1'!A34:B34 -> Indirect Costs/Administrative | C34: 0
A35: ='INVOICE 1'!A35:B35 -> Equipment/Fixed Assets | C35: 0
A36: ='INVOICE 1'!A36:B36 -> Project Evaluation & Data Collection | C36: 0
A37: ='INVOICE 1'!A37:B37 -> Other (include travel costs) | C37: 0
A38: PERSON PREPARING REPORT | E38: AUTHORIZED FINANCIAL OFFICER | K38: BSCC Supplier Data - Internal Use Only
E39: I hereby certify that I am the authorized financial officer of the herein named agency. I further certify that I have not violated any of the provisions of Section 1090 of the Government Code in incurring the expenditures reported in this request for payment, nor in any other way; that Sections 1090 through 1096 of the Government Code will not be violated in any way in the expenditure of funds pursuant to this request; that statement of funds above is true, correct, and in accordance with program provisions in all respects; and that all funds requested after the expiration date of this contract are for the purpose of liquidating obligations legally incurred under the life of this contract. By signing this report, I certify to the best of my knowledge and belief that the report is true, complete, and accurate, and the expenditures, disbursements and cash receipts are for the purposes and objectives set forth in the terms and conditions of the Federal award. I am aware that any false, fictitious, or fraudulent information, or the omission of any material fact, may subject me to criminal, civil or administrative penalties for fraud, false statements, false claims or otherwise. (U.S. Code Title 18, Section 1001 and Title 31, Sections 3729–3730 and 3801–3812).Furthermore, by submitting this invoice, I acknowledge that it must adhere to all of the requirements in the BSCC Grant Administration Guide, including any updates to the Guide during the term of the grant agreement.
A40: Kayla Cameron, Finance Director | K40: ='INVOICE 1'!K40:M40 -> 107816
A41: Name, Title | K41: ='INVOICE 1'!K41:M41 -> Supplier ID
A42: 628-629-4475 | K42: ='INVOICE 1'!K42:M42 -> CNTR FOR YOUNG WOMENS DEV
A43: Phone | K43: ='INVOICE 1'!K43:M43 -> Supplier Name
A44: kayla@youngwomenfree.org | K44: ='INVOICE 1'!K44:M44 -> 832 Folsom Street, Suite 700
A45: Email | K45: ='INVOICE 1'!K45:M45 -> Address Line 1
A46: 2023-04-18 | K46: ='INVOICE 1'!K46:M46 -> San Francisco, CA 94107
A47: Date | K47: ='INVOICE 1'!K47:M47 -> Address Line 2
E49: Abigail Richards, Co-Executive Director
E50: Name, Title
E51: 415-703-8800
E52: Phone
E53: 2023-04-18
E54: Date
E55: AR | F55: Please initial here to certify the submission of this invoice.
A57: BSCC USE ONLY
A58: Date Received: | C58: 2023-04-18 | G58: Approved By: | I58: Timothy Polasik, 5/5/2023
I59: BSCC Field Representative

Sheet INVOICE 13
A1: STATE OF CALIFORNIA | K1: Purchase Authority | L1: BSCC-5227
A2: BOARD OF STATE AND COMMUNITY CORRECTIONS | K2: Purchase Order: | M2: ='INVOICE 12'!M2 -> 5227-0000003750
A3: Financial Invoice Form: BSCC 201 (Revised 04/2020)
A5: Program: | B5: ='INVOICE 1'!B5 -> TITLE II | J5: Please Note: The California State Controller's Office will send all checks directly to the address listed in the "BSCC Vendor Data" section at the bottom of this invoice.
A7: Grantee: | B7: ='INVOICE 1'!B7 -> Center for Young Women's Development DBA Young Women's Freedom Center
A9: Contract #: | B9: ='INVOICE 1'!B9 -> BSCC 309-19 | D9: Term: | E9: ='INVOICE 1'!E9 -> 2019-12-01 | F9: TO | G9: 2023-06-30 | K9: Invoicing Frequency | L9: QUARTERLY
A11: Invoice #: | B11: 13 TITLE II 2019 | D11: Reporting Period: | E11: 2023-01-01 | F11: TO | G11: 2023-03-31 | H11: Due: | I11: 2023-05-15 | K11: Final Invoice (Y/N): | L11: No
A13: Line Items | B13: Budget | E13: Prior Expenditures | H13: This Reporting Period | K13: Balance
A14: ='INVOICE 1'!A14 -> Salaries & Benefits | C14: ='INVOICE 12'!C14 -> 342330 | F14: ='INVOICE 12'!F14+'INVOICE 12'!I14 -> 315665 | I14: 26665 | L14: =C14-F14-I14 -> 0
A15: ='INVOICE 1'!A15 -> Services & Supplies | C15: ='INVOICE 12'!C15 -> 257610 | F15: ='INVOICE 12'!F15+'INVOICE 12'!I15 -> 208978 | I15: 36799 | L15: =C15-F15-I15 -> 11833
A16: ='INVOICE 1'!A16 -> Professional Services | C16: ='INVOICE 12'!C16 -> 0 | F16: ='INVOICE 12'!F16+'INVOICE 12'!I16 -> 0 | I16: 0 | L16: 0
A17: ='INVOICE 1'!A17 -> NGO Subcontracts | C17: ='INVOICE 12'!C17 -> 420060 | F17: ='INVOICE 12'!F17+'INVOICE 12'!I17 -> 247789 | I17: 0 | L17: 172271
A18: ='INVOICE 1'!A18 -> Indirect Costs / Administrative Costs | C18: ='INVOICE 12'!C18 -> 0 | F18: ='INVOICE 12'!F18+'INVOICE 12'!I18 -> 0 | I18: 0 | L18: 0
A19: ='INVOICE 1'!A19 -> Equipment / Fixed Assets | C19: ='INVOICE 12'!C19 -> 0 | F19: ='INVOICE 12'!F19+'INVOICE 12'!I19 -> 0 | I19: 0 | L19: 0
A20: ='INVOICE 1'!A20 -> Project Evaluation & Data Collection | C20: ='INVOICE 12'!C20 -> 30000 | F20: ='INVOICE 12'!F20+'INVOICE 12'!I20 -> 20000 | I20: 10000 | L20: 0
A21: ='INVOICE 1'!A21 -> Other (include travel costs) | C21: ='INVOICE 12'!C21 -> 0 | F21: ='INVOICE 12'!F21+'INVOICE 12'!I21 -> 0 | I21: 0 | L21: 0
A22: TOTAL | C22: =SUM(C14:C21) -> 1050000 | F22: =SUM(F14:F21) -> 792432 | I22: =SUM(I14:I21) -> 73464 | L22: =SUM(L14:L21) -> 184104
A24: Project Income | C24: Income reported to date | D24: ='INVOICE 3'!D24+'INVOICE 13'!I24 -> 0 | F24: Prior allocated income | G24: 0 | H24: This Period | I24: 0 | L24: Unallocated income balance | M24: =D24-G24 -> 0
C26: Grant funds expended to date: | D26: =F22+I22 -> 865896 | G26: Grant funds claimed this period: | H26: =I22 -> 73464 | L26: Percentage Grant $$ expended to date: | M26: =D26/C22 -> 0.8246628571
D29: Expenditure Descriptions - Units / $ Amounts | L29: Comments
A30: ='INVOICE 1'!A30:B30 -> Salaries & Benefits | C30: =I14 -> 26665 | D30: 0.75 FTE Program Manager + 26% benefits - 3 months/$18208; 1 FTE Peer Advocate/Coach - 3 months/$5308; 0.1 FTE Program Evaluation Director + 26% benefits - 0 months/$0; .01 FTE Executive Director + 26% benefits -3 months/$3150
A31: ='INVOICE 1'!A31:B31 -> Services & Supplies | C31: =I15 -> 36799 | D31: Youth Honorarium - 10 youth, 3 months/$27464; Travel - youth transportation costs to/from program site, 3 months/$2209; Training Materials - program supplies, 3 months/2500; Community Events - program graduation/celebrations, 3 months/2125; Insurance - organizational insurance, grant-funded portion, 3 months/$2500
A32: ='INVOICE 1'!A32:B32 -> Professional Services | C32: 0
A33: ='INVOICE 1'!A33:B33 -> NGO Subcontracts | C33: 0
A34: ='INVOICE 1'!A34:B34 -> Indirect Costs/Administrative | C34: 0
A35: ='INVOICE 1'!A35:B35 -> Equipment/Fixed Assets | C35: 0
A36: ='INVOICE 1'!A36:B36 -> Project Evaluation & Data Collection | C36: 10000 | D36: NYU - evaluation services, 3 months/10000
A37: ='INVOICE 1'!A37:B37 -> Other (include travel costs) | C37: 0
A38: PERSON PREPARING REPORT | E38: AUTHORIZED FINANCIAL OFFICER | K38: BSCC Supplier Data - Internal Use Only
E39: I hereby certify that I am the authorized financial officer of the herein named agency. I further certify that I have not violated any of the provisions of Section 1090 of the Government Code in incurring the expenditures reported in this request for payment, nor in any other way; that Sections 1090 through 1096 of the Government Code will not be violated in any way in the expenditure of funds pursuant to this request; that statement of funds above is true, correct, and in accordance with program provisions in all respects; and that all funds requested after the expiration date of this contract are for the purpose of liquidating obligations legally incurred under the life of this contract. By signing this report, I certify to the best of my knowledge and belief that the report is true, complete, and accurate, and the expenditures, disbursements and cash receipts are for the purposes and objectives set forth in the terms and conditions of the Federal award. I am aware that any false, fictitious, or fraudulent information, or the omission of any material fact, may subject me to criminal, civil or administrative penalties for fraud, false statements, false claims or otherwise. (U.S. Code Title 18, Section 1001 and Title 31, Sections 3729–3730 and 3801–3812).Furthermore, by submitting this invoice, I acknowledge that it must adhere to all of the requirements in the BSCC Grant Administration Guide, including any updates to the Guide during the term of the grant agreement.
A40: Kayla Cameron, Finance Director | K40: ='INVOICE 1'!K40:M40 -> 107816
A41: Name, Title | K41: ='INVOICE 1'!K41:M41 -> Supplier ID
A42: 6286294475 | K42: ='INVOICE 1'!K42:M42 -> CNTR FOR YOUNG WOMENS DEV
A43: Phone | K43: ='INVOICE 1'!K43:M43 -> Supplier Name
A44: kayla@youngwomenfree.org | K44: ='INVOICE 1'!K44:M44 -> 832 Folsom Street, Suite 700
A45: Email | K45: ='INVOICE 1'!K45:M45 -> Address Line 1
A46: 2023-06-27 | K46: ='INVOICE 1'!K46:M46 -> San Francisco, CA 94107
A47: Date | K47: ='INVOICE 1'!K47:M47 -> Address Line 2
E49: Abigail Richards, Co-Executive Director
E50: Name, Title
E51: 4157038800
E52: Phone
E53: 2023-06-27
E54: Date
E55: AR | F55: Please initial here to certify the submission of this invoice.
A57: BSCC USE ONLY
A58: Date Received: | C58: 2023-06-27 | G58: Approved By: | I58: Timothy Polasik, 07/24/2023
I59: BSCC Field Representative

Sheet INVOICE 14
A1: STATE OF CALIFORNIA | K1: Purchase Authority | L1: BSCC-5227
A2: BOARD OF STATE AND COMMUNITY CORRECTIONS | K2: Purchase Order: | M2: ='INVOICE 13'!M2 -> 5227-0000003750
A3: Financial Invoice Form: BSCC 201 (Revised 04/2020)
A5: Program: | B5: ='INVOICE 1'!B5 -> TITLE II | J5: Please Note: The California State Controller's Office will send all checks directly to the address listed in the "BSCC Vendor Data" section at the bottom of this invoice.
A7: Grantee: | B7: ='INVOICE 1'!B7 -> Center for Young Women's Development DBA Young Women's Freedom Center
A9: Contract #: | B9: ='INVOICE 1'!B9 -> BSCC 309-19 | D9: Term: | E9: ='INVOICE 1'!E9 -> 2019-12-01 | F9: TO | G9: 2023-06-30 | K9: Invoicing Frequency | L9: QUARTERLY
A11: Invoice #: | B11: 14 TITLE II 2019 | D11: Reporting Period: | E11: 2023-04-01 | F11: TO | G11: 2023-06-30 | H11: Due: | I11: 2023-08-15 | K11: Final Invoice (Y/N): | L11: Yes
A13: Line Items | B13: Budget | E13: Prior Expenditures | H13: This Reporting Period | K13: Balance
A14: ='INVOICE 1'!A14 -> Salaries & Benefits | C14: ='INVOICE 13'!C14 -> 342330 | F14: ='INVOICE 13'!F14+'INVOICE 13'!I14 -> 342330 | I14: 0 | L14: =C14-F14-I14 -> 0
A15: ='INVOICE 1'!A15 -> Services & Supplies | C15: ='INVOICE 13'!C15 -> 257610 | F15: ='INVOICE 13'!F15+'INVOICE 13'!I15 -> 245777 | I15: 0 | L15: =C15-F15-I15 -> 11833
A16: ='INVOICE 1'!A16 -> Professional Services | C16: ='INVOICE 13'!C16 -> 0 | F16: ='INVOICE 13'!F16+'INVOICE 13'!I16 -> 0 | I16: 0 | L16: 0
A17: ='INVOICE 1'!A17 -> NGO Subcontracts | C17: ='INVOICE 13'!C17 -> 420060 | F17: ='INVOICE 13'!F17+'INVOICE 13'!I17 -> 247789 | I17: 0 | L17: 172271
A18: ='INVOICE 1'!A18 -> Indirect Costs / Administrative Costs | C18: ='INVOICE 13'!C18 -> 0 | F18: ='INVOICE 13'!F18+'INVOICE 13'!I18 -> 0 | I18: 0 | L18: 0
A19: ='INVOICE 1'!A19 -> Equipment / Fixed Assets | C19: ='INVOICE 13'!C19 -> 0 | F19: ='INVOICE 13'!F19+'INVOICE 13'!I19 -> 0 | I19: 0 | L19: 0
A20: ='INVOICE 1'!A20 -> Project Evaluation & Data Collection | C20: ='INVOICE 13'!C20 -> 30000 | F20: ='INVOICE 13'!F20+'INVOICE 13'!I20 -> 30000 | I20: 0 | L20: 0
A21: ='INVOICE 1'!A21 -> Other (include travel costs) | C21: ='INVOICE 13'!C21 -> 0 | F21: ='INVOICE 13'!F21+'INVOICE 13'!I21 -> 0 | I21: 0 | L21: 0
A22: TOTAL | C22: =SUM(C14:C21) -> 1050000 | F22: =SUM(F14:F21) -> 865896 | I22: =SUM(I14:I21) -> 0 | L22: =SUM(L14:L21) -> 184104
A24: Project Income | C24: Income reported to date | D24: ='INVOICE 3'!D24+'INVOICE 14'!I24 -> 0 | F24: Prior allocated income | G24: 0 | H24: This Period | I24: 0 | L24: Unallocated income balance | M24: =D24-G24 -> 0
C26: Grant funds expended to date: | D26: =F22+I22 -> 865896 | G26: Grant funds claimed this period: | H26: =I22 -> 0 | L26: Percentage Grant $$ expended to date: | M26: =D26/C22 -> 0.8246628571
D29: Expenditure Descriptions - Units / $ Amounts | L29: Comments
A30: ='INVOICE 1'!A30:B30 -> Salaries & Benefits | C30: =I14 -> 0
A31: ='INVOICE 1'!A31:B31 -> Services & Supplies | C31: =I15 -> 0
A32: ='INVOICE 1'!A32:B32 -> Professional Services | C32: 0
A33: ='INVOICE 1'!A33:B33 -> NGO Subcontracts | C33: 0
A34: ='INVOICE 1'!A34:B34 -> Indirect Costs/Administrative | C34: 0
A35: ='INVOICE 1'!A35:B35 -> Equipment/Fixed Assets | C35: 0
A36: ='INVOICE 1'!A36:B36 -> Project Evaluation & Data Collection | C36: 0
A37: ='INVOICE 1'!A37:B37 -> Other (include travel costs) | C37: 0
A38: PERSON PREPARING REPORT | E38: AUTHORIZED FINANCIAL OFFICER | K38: BSCC Supplier Data - Internal Use Only
E39: I hereby certify that I am the authorized financial officer of the herein named agency. I further certify that I have not violated any of the provisions of Section 1090 of the Government Code in incurring the expenditures reported in this request for payment, nor in any other way; that Sections 1090 through 1096 of the Government Code will not be violated in any way in the expenditure of funds pursuant to this request; that statement of funds above is true, correct, and in accordance with program provisions in all respects; and that all funds requested after the expiration date of this contract are for the purpose of liquidating obligations legally incurred under the life of this contract. By signing this report, I certify to the best of my knowledge and belief that the report is true, complete, and accurate, and the expenditures, disbursements and cash receipts are for the purposes and objectives set forth in the terms and conditions of the Federal award. I am aware that any false, fictitious, or fraudulent information, or the omission of any material fact, may subject me to criminal, civil or administrative penalties for fraud, false statements, false claims or otherwise. (U.S. Code Title 18, Section 1001 and Title 31, Sections 3729–3730 and 3801–3812).Furthermore, by submitting this invoice, I acknowledge that it must adhere to all of the requirements in the BSCC Grant Administration Guide, including any updates to the Guide during the term of the grant agreement.
K40: ='INVOICE 1'!K40:M40 -> 107816
A41: Name, Title | K41: ='INVOICE 1'!K41:M41 -> Supplier ID
K42: ='INVOICE 1'!K42:M42 -> CNTR FOR YOUNG WOMENS DEV
A43: Phone | K43: ='INVOICE 1'!K43:M43 -> Supplier Name
K44: ='INVOICE 1'!K44:M44 -> 832 Folsom Street, Suite 700
A45: Email | K45: ='INVOICE 1'!K45:M45 -> Address Line 1
K46: ='INVOICE 1'!K46:M46 -> San Francisco, CA 94107
A47: Date | K47: ='INVOICE 1'!K47:M47 -> Address Line 2
E50: Name, Title
E52: Phone
E54: Date
F55: Please initial here to certify the submission of this invoice.
A57: BSCC USE ONLY
A58: Date Received: | G58: Approved By:
I59: BSCC Field Representative

Sheet MODIFICATION REQUEST
M1: STATE OF CALIFORNIA
A2: MODIFICATION REQUEST - (FORM BSCC 223.1 (Revised 1/23) | M2: BOARD OF STATE AND COMMUNITY CORRECTIONS
A5: Please mark an "X" in the green cell to indicate which type of budget modification you want to select.
B7: Line-Item Change | F7: Budget Modification | J7: Project Income Allocation
B8: Select this option if you are modifying narrative details within a line item (or line items) but not changing the budget. | F8: Select ths option if you are modifying line-item dollar amounts by moving funds from one line-item to another. | J8: Select this option if you are allocating earned project income.
A10: Important Note: You must provide a detailed justification for all modification requests. All modifications require BSCC Field Representative approval.
A12: Grantee: | B12: ='INVOICE 1'!B7 -> Center for Young Women's Development DBA Young Women's Freedom Center | I12: Grant Program: | J12: ='INVOICE 1'!B5 -> TITLE II
A14: Address | B14: 832 Folsom Street, Suite 700
B16: San Francisco, CA 94107
A18: Contract #: | B18: ='INVOICE 1'!B9 -> BSCC 309-19 | J18: Modification Request # | K18: 2
A20: Term: | B20: ='INVOICE 1'!E9 -> 2019-12-01 | C20: ='INVOICE 1'!F9 -> TO | D20: 2023-06-30 | J20: Effective on Invoice #
A22: Line Items | B22: Current Budget | E22: Available Budget | H22: Changes (+/-) | K22: Modified Budget
A23: Salaries & Benefits | C23: ='INVOICE 14'!C14 -> 342330 | F23: ='INVOICE 14'!L14 -> 0 | I23: 0 | L23: =SUM(C23+I23) -> 342330
A24: Services & Supplies | C24: ='INVOICE 14'!C15 -> 257610 | F24: ='INVOICE 14'!L15 -> 11833 | I24: 0 | L24: =SUM(C24+I24) -> 257610
A25: Professional Services | C25: ='INVOICE 14'!C16 -> 0 | F25: ='INVOICE 14'!L16 -> 0 | I25: 0 | L25: 0
A26: NGO Subcontracts | C26: ='INVOICE 14'!C17 -> 420060 | F26: ='INVOICE 14'!L17 -> 172271 | I26: 0 | L26: 420060
A27: Indirect Costs/Administrative Costs | C27: ='INVOICE 14'!C18 -> 0 | F27: ='INVOICE 14'!L18 -> 0 | I27: 0 | L27: 0
A28: Equipment / Fixed Assets | C28: ='INVOICE 14'!C19 -> 0 | F28: ='INVOICE 14'!L19 -> 0 | I28: 0 | L28: 0
A29: Project Evaluation & Data Collection | C29: ='INVOICE 14'!C20 -> 30000 | F29: ='INVOICE 14'!L20 -> 0 | I29: 0 | L29: 30000
A30: Other (include travel costs) | C30: ='INVOICE 14'!C21 -> 0 | F30: ='INVOICE 14'!L21 -> 0 | I30: 0 | L30: 0
A31: TOTAL | C31: =SUM(C23:C30) -> 1050000 | F31: =SUM(F23:F30) -> 184104 | I31: =SUM(I23:I30) -> 0 | L31: =SUM(L23:L30) -> 1050000
A33: Project Income | C33: Income reported to date | D33: 0 | F33: Prior allocated income | G33: 0 | H33: Allocating | I33: 0 | L33: Unallocated income balance | M33: =D33-I33 -> 0
A35: JUSTIFICATION FOR MODIFICATION:
A60: PERSON PREPARING REPORT | H60: AUTHORIZED FINANCIAL OFFICER
H61: I hereby certify that I am the authorized financial officer of the herein named agency. I further certify that I have not violated any of the provisions of Section 1090 of the Government Code in incurring the expenditures reported in this request for payment, nor in any other way; that Sections 1090 through 1096 of the Government Code will not be violated in any way in the expenditure of funds pursuant to this request; that statement of funds above is true, correct, and in accordance with program provisions in all respects; and that all funds requested after the expiration date of this contract are for the purpose of liquidating obligations legally incurred under the life of this contract. By signing this report, I certify to the best of my knowledge and belief that the report is true, complete, and accurate, and the expenditures, disbursements and cash receipts are for the purposes and objectives set forth in the terms and conditions of the Federal award. I am aware that any false, fictitious, or fraudulent information, or the omission of any material fact, may subject me to criminal, civil or administrative penalties for fraud, false statements, false claims or otherwise. (U.S. Code Title 18, Section 1001 and Title 31, Sections 3729–3730 and 3801–3812).Furthermore, by submitting this invoice, I acknowledge that it must adhere to all of the requirements in the BSCC Grant Administration Guide, including any updates to the Guide during the term of the grant agreement.
A63: Name, Title
A65: Phone
A67: Email
A69: Date
H72: Name, Title
H74: Phone
H76: Date
J77: Please initial here to certify the submission of this budget modification.
A79: BSCC USE ONLY
A80: Date Received: | H80: Approved By: | L80: Date:
I81: BSCC Field Representative

Sheet Year 1 Budget
A2: Section 5: Title II Grant - Year 1 Prorgram Budget and Budget Narrative
A3: Applicant: | D3: Young Women's Freedom Center
A4: Year 1 Program Budget: December 1, 2019 thru November 30, 2020
A5: Budget Line Item | H5: Total
A6: 1. Salaries and Benefits | H6: =H24 -> 105480
A7: 2. Services and Supplies | H7: =H41 -> 94500
A8: 3. Professional Services | H8: =H55 -> 0
A9: 4. Direct Service Provider Subcontracts | D9: Required Pass-thru = 70% Actual: | G9: =H9/H14 -> 0.4000571429 | H9: =H71 -> 140020
A10: 5. Equipment/Fixed Assets | H10: =H86 -> 0
A11: 6. Project Evaluation and Data Collection | H11: =H99 -> 10000
A12: 7. Other (Travel, Training, etc.) | H12: =H114 -> 0
A13: 8. Indirect Costs | H13: =H130 -> 0
A14: TOTAL | H14: =SUM(H6:H13) -> 350000
A16: 1a. Salaries and Benefits
A17: Name and Title | C17: (% FTE or Hourly Rate) & Benefits | H17: Grant Funds
A18: Example (Hourly): Bob Smith, Fiscal Manager | C18: $60/hour x 10 hrs/month x 3 years = $21,600 + benefits @ 22%: $4,752 = | H18: =SUM(F18:G18) -> 0
A19: Example (FTE): Jane Doe, Counselor | C19: .25 FTE @ $60,000 x 3 years = $45,000 + benefits @ 22%: $9,900 = | H19: =SUM(F19:G19) -> 0
A20: YWFC Sisters on the Rise Program Manager | C20: 1.0 FTE @ $52,000 + benefits @ 26% = | H20: 65520
A21: YWFC Peer Advocate/Coach | C21: $18/hour x 20 hrs/week x 48 weeks = | H21: 17280
A22: YWFC Program Evaluation Director | C22: .075 FTE @ $80,000 = $6,000 + benefits @ 26%: $1,560 = | H22: 7560
A23: YWFC Executive Director | C23: .01 FTE @ $120,000 = $12,000 + benefits @ 26%: $3,120 = | H23: 15120
A24: TOTAL | H24: =SUM(H20:H23) -> 105480
A26: Salaries and Benefits Narrative
A27: The Sisters on the Rise Program Manager will oversee the program, provide job training and coaching, connect participants to education options, counseling, case management and other support services. In addition the Program Manager will coordinate with De-Bug and our County partners on referrals. The Peer Advocate/Coach will do outreach for program participants, support participants in developing personal and professional plans, support youth in court and system engagements, identify training and support needs, and provide on-site job coaching. The Program Evaluation Director will supportl data collection and will coordinate with the BSCC Evaluator, SCC, Vera Institute and NYU to centralize data.The Executive Director will oversee the building of the project in SCC and coordinate relationships with SCC Probation, Office of Women's Policy and the Juvenile Court.
A32: MOD x APPROVAL DATE:
A35: 2. Services and Supplies
A36: Description of Services or Supplies | C36: Calculation for Expenditure | H36: Grant Funds
A37: Youth Honorariums | C37: $4,990/year x 15 youth = $74,850 + benefits @ 5%: $3,740 = | H37: 78600
A38: Travel for Youth for trainings & job internships | C38: $1,000/youth x 15 = | H38: 15000
A39: Training materials | C39: $75/month x 12 months = | H39: 900
H40: 0
A41: TOTAL | H41: =SUM(H37:H40) -> 94500
A43: Services and Supplies Narrative:
A44: Interns are stipended $4,990 for participating in 300 hours of training and job placement with on-the-job training plus 5% for government benefits (they are added to payroll toward building their employment history): 10 interns from Sept - May and 5 interns during the summer.Travel will cover participant's public transportation to and from trainings and job placements. Training materials include flip chart paper, photocopies, pens, notebooks, printer cartridges and binders.
A48: MOD x APPROVAL DATE:
A51: 3. Professional Services
A52: Description of Professional Services | C52: Calculation for Expenditure | G52: di Minimis Calculation | H52: Grant Funds
G53: =IF(H53<25000,H53,25000) -> 0 | H53: 0
G54: =IF(H54<25000,H54,25000) -> 0 | H54: 0
A55: TOTALS | G55: =SUM(G53:G54) -> 0 | H55: =SUM(H53:H54) -> 0
A57: Professional Services Narrative
A60: MOD x APPROVAL DATE:
A63: 4. Direct Service Provider Subcontracts (NGOs and/or Government Agencies)
A64: Government agencies and Indian Tribes- 70% pass-through required. NGOs and Indian Tribes providing direct services are exempt but are permitted to do so.
A65: Description of Subcontract | C65: Calculation for Expenditure | G65: di Minimis Calculation | H65: Grant Funds
A66: De-Bug Community Release Coordinator | C66: $27/hour x 12 hrs/week x 48 weeks = $15,552 + benefits @ 20%: $3,110 = | G66: =IF(H66<25000,H66,25000) -> 18662 | H66: 18662
A67: De-Bug Community Navigator | C67: $25/hour x 20 hrs/week x 48 weeks = $24,000 + benefits @ 20%: $4,800 = | G67: =IF(H67<25000,H67,25000) -> 25000 | H67: 28800
A68: Youth Honorariums | C68: $7,500/year x 12 youth = | G68: =IF(H68<25000,H68,25000) -> 25000 | H68: 90000
A69: Overhead | G69: =IF(H69<25000,H69,25000) -> 2558 | H69: 2558
G70: =IF(H70<25000,H70,25000) -> 0 | H70: 0
A71: TOTALS | G71: =SUM(G66:G70) -> 71220 | H71: =SUM(H66:H70) -> 140020
A73: Direct Service Provider Subcontracts Subcontracts Narrative
A74: The Community Release Coordinator will manage De-Bug's participation in the project and engage with court and community partners. The Community Navigator will attend court, connect with community partners, and support youth in their goal development, access to resources, and training.The Youth Honorariums cover 520 hour of job training, academic support, connection to community resources and paid media and/or community organizing internships at De-Bug. Our overhead covers our financial record keeping, oversight by our Community Organizer and administrative supplies.
A79: MOD x APPROVAL DATE:
A82: 5. Equipment/Fixed Assets
A83: Description of Equipment/Fixed Asset | C83: Calculation for Expense | H83: Grant Funds
H84: 0
H85: 0
A86: TOTALS | H86: =SUM(H84:H85) -> 0
A88: Equipment/Fixed Assets Narrative
A91: MOD x APPROVAL DATE:
A94: 6. Project Evaluation and Data Collection
A95: Description | H95: Grant Funds
A96: Vera Institute | H96: 5000
A97: New York University | H97: 5000
H98: 0
A99: TOTAL | H99: =SUM(H96:H98) -> 10000
A101: Project Evaluation and Data Collection Narrative:
A102: The YWFC Program Evaluation Director will supportl data collection and will coordinate with the BSCC Evaluator, SCC, Vera Institute and NYU to centralize data. Vera Institute and NYU will provide data from on-going research and evaluation collaboration with SCC.
A106: MOD x APPROVAL DATE:
A109: 7. Other (Travel, Training, etc.)
A110: Description | C110: Calculation for Expense | H110: Grant Funds
H111: 0
H112: 0
H113: 0
A114: TOTAL | H114: =SUM(H111:H113) -> 0
A116: Other (Travel, Training, etc.) Narrative:
A120: MOD x APPROVAL DATE:
A123: 8. Indirect Costs
A124: Indirect costs may be charged by choosing only one of options 1) or 2) listed below. | H124: Grant Funds
A126: Option 1) Indirect costs will be charged using a Federally approved Negotiated Indirect Cost Rate (NICR). Enter your approved NICR percentage as a number (e.g., 25, 31, 32.25) in cell E246. Enter your calculated cost base in cell F246 (the total of all budget line items allowed as indicated in your federally approved NICR). Your project indirect costs cannot exceed the total shown in cell G246. If using Option 1, enter the amount to be charged to indirect costs in cell H246. | E126: 0 | F126: 0 | G126: =E126*F126 -> 0 | H126: 0
A128: Option 2) Indirect costs will be charged using the Federal Di Minimus, 10% of Modified Total Direct Costs, calculated as 10% multiplied by ( total direct costs, minus equipment, plus up to the first $25,000 of each subcontract (cell F248)). If using the Federal Di Minimus, your project indirect costs cannot exceed the total shown in cell G248. If using Option 2, enter the amount to be charged to indirect costs in cell H248. | E128: 0.1 | F128: =SUM(H114,H99,G71,G55,H41,H24) -> 281200 | G128: =E128*F128 -> 28120 | H128: 0
A130: If the amount entered in either H246 or H248 turns red, adjust it to not exceed the line-item limits noted in G246 and G248: TOTAL | H130: =SUM(H125:H128) -> 0
A132: Indirect Costs Narrative:
A133: If using a federally approved NICR, you must include evidence on the cost base(s) used to distribute indirect costs that agrees with the calculation entered in cell F246.
A137: MOD x APPROVAL DATE:

Sheet Year 2 Budget
A2: Section 5: Title II Grant - Year 2 Prorgram Budget and Budget Narrative
A3: Applicant: | D3: Young Women's Freedom Center
A4: Year 2 Program Budget: December 1, 2020 thru November 30, 2021
A5: Budget Line Item | H5: Total
A6: 1. Salaries and Benefits | H6: =H22 -> 105480
A7: 2. Services and Supplies | H7: =H39 -> 94500
A8: 3. Professional Services | H8: =H53 -> 0
A9: 4. Direct Service Provider Subcontracts | D9: Required Pass-thru = 70% Actual: | G9: =H9/H14 -> 0.4000571429 | H9: =H69 -> 140020
A10: 5. Equipment/Fixed Assets | H10: =H84 -> 0
A11: 6. Project Evaluation and Data Collection | H11: =H97 -> 10000
A12: 7. Other (Travel, Training, etc.) | H12: =H110 -> 0
A13: 8. Indirect Costs | H13: =H125 -> 0
A14: TOTAL | H14: =SUM(H6:H13) -> 350000
A16: 1. Salaries and Benefits
A17: Name and Title | C17: (% FTE or Hourly Rate) & Benefits | H17: Grant Funds
A18: YWFC Sisters on the Rise Program Manager | C18: 1.0 FTE @ $52,000 + benefits @ 26% = | H18: 65520
A19: YWFC Peer Advocate/Coach | C19: $18/hour x 20 hrs/week x 48 weeks = | H19: 17280
A20: YWFC Program Evaluation Director | C20: .075 FTE @ $80,000 = $6,000 + benefits @ 26%: $1,560 = | H20: 7560
A21: YWFC Executive Director | C21: .01 FTE @ $120,000 = $12,000 + benefits @ 26%: $3,120 = | H21: 15120
A22: TOTAL | H22: =SUM(H18:H21) -> 105480
A24: Salaries and Benefits
A25: The Sisters on the Rise Program Manager will oversee the program, provide job training and coaching, connect participants to education options, counseling, case management and other support services. In addition the Program Manager will coordinate with De-Bug and our County partners on referrals. The Peer Advocate/Coach will do outreach for program participants, support participants in developing personal and professional plans, support youth in court and system engagements, identify training and support needs, and provide on-site job coaching. The Program Evaluation Director will supportl data collection and will coordinate with the BSCC Evaluator, SCC, Vera Institute and NYU to centralize data.The Executive Director will oversee the building of the project in SCC and coordinate relationships with SCC Probation, Office of Women's Policy and the Juvenile Court.
A31: MOD x APPROVAL DATE:
A34: 2. Services and Supplies
A35: Description of Services or Supplies | C35: Calculation for Expenditure | H35: Grant Funds
A36: Youth Honorariums | C36: $4,990/year x 15 youth = $74,850 + benefits @ 5%: $3,740 = | H36: 78600
A37: Travel for Youth for trainings & job internships | C37: $1,000/youth x 15 = | H37: 15000
A38: Training materials | C38: $75/month x 12 months = | H38: 900
A39: TOTAL | H39: =SUM(H36:H38) -> 94500
A41: Services and Supplies Narrative:
A42: Interns are stipended $4,990 for participating in 300 hours of training and job placement with on-the-job training plus 5% for government benefits (they are added to payroll toward building their employment history): 10 interns from Sept - May and 5 interns during the summer.Travel will cover participant's public transportation to and from trainings and job placements. Training materials include flip chart paper, photocopies, pens, notebooks, printer cartridges and binders.
A45: MOD x APPROVAL DATE:
A48: 3. Professional Services
A49: Description of Professional Services | C49: Calculation for Expenditure | G49: di Minimis Calculation | H49: Grant Funds
G50: =IF(H50<25000,H50,25000) -> 0 | H50: 0
G51: =IF(H51<25000,H51,25000) -> 0 | H51: 0
G52: =IF(H52<25000,H52,25000) -> 0 | H52: 0
A53: TOTALS | G53: =SUM(G50:G52) -> 0 | H53: =SUM(H50:H52) -> 0
A55: Professional Services Narrative
A59: MOD x APPROVAL DATE:
A62: 4. Direct Service Provider Subcontracts (NGOs and/or Government Agencies)
A63: Government agencies and Indian Tribes- 70% pass-through required. NGOs and Indian Tribes providing direct services are exempt but are permitted to do so.
A64: Description of Subcontract | C64: Calculation for Expenditure | G64: di Minimis Calculation | H64: Grant Funds
A65: De-Bug Community Release Coordinator | C65: $27/hour x 12 hrs/week x 48 weeks = $15,552 + benefits @ 20%: $3,110 = | G65: =IF(H65<25000,H65,25000) -> 18662 | H65: 18662
A66: De-Bug Community Navigator | C66: $25/hour x 20 hrs/week x 48 weeks = $24,000 + benefits @ 20%: $4,800 = | G66: =IF(H66<25000,H66,25000) -> 25000 | H66: 28800
A67: Youth Honorariums | C67: $7,500/year x 12 youth = | G67: =IF(H67<25000,H67,25000) -> 25000 | H67: 90000
A68: Overhead | G68: =IF(H68<25000,H68,25000) -> 2558 | H68: 2558
A69: TOTALS | G69: =SUM(G65:G68) -> 71220 | H69: =SUM(H65:H68) -> 140020
A71: Direct Service Provider Subcontracts Subcontracts Narrative
A72: The Community Release Coordinator will manage De-Bug's participation in the project and engage with court and community partners. The Community Navigator will attend court, connect with community partners, and support youth in their goal development, access to resources, and training.The Youth Honorariums cover 520 hour of job training, academic support, connection to community resources and paid media and/or community organizing internships at De-Bug. Our overhead covers our financial record keeping, oversight by our Community Organizer and administrative supplies.
A76: MOD x APPROVAL DATE:
A79: 5. Equipment/Fixed Assets
A80: Description of Equipment/Fixed Asset | C80: Calculation for Expense | H80: Grant Funds
H81: 0
H82: 0
H83: 0
A84: TOTALS | H84: =SUM(H81:H83) -> 0
A86: Equipment/Fixed Assets Narrative
A90: MOD x APPROVAL DATE:
A93: 6. Project Evaluation and Data Collection
A94: Description | H94: Grant Funds
A95: Vera Institute | H95: 5000
A96: New York University | H96: 5000
A97: TOTAL | H97: =SUM(H95:H96) -> 10000
A99: Project Evaluation and Data Collection Narrative:
A100: The YWFC Program Evaluation Director will supportl data collection and will coordinate with the BSCC Evaluator, SCC, Vera Institute and NYU to centralize data. Vera Institute and NYU will provide data from on-going research and evaluation collaboration with SCC.
A103: MOD x APPROVAL DATE:
A106: 7. Other (Travel, Training, etc.)
A107: Description | C107: Calculation for Expense | H107: Grant Funds
H108: 0
H109: 0
A110: TOTAL | H110: =SUM(H108:H109) -> 0
A112: Other (Travel, Training, etc.) Narrative:
A115: MOD x APPROVAL DATE:
A118: 8. Indirect Costs
A119: Indirect costs may be charged by choosing only one of options 1) or 2) listed below. | H119: Grant Funds
A121: Option 1) Indirect costs will be charged using a Federally approved Negotiated Indirect Cost Rate (NICR). Enter your approved NICR percentage as a number (e.g., 25, 31, 32.25) in cell E246. Enter your calculated cost base in cell F246 (the total of all budget line items allowed as indicated in your federally approved NICR). Your project indirect costs cannot exceed the total shown in cell G246. If using Option 1, enter the amount to be charged to indirect costs in cell H246. | E121: 0 | F121: 0 | G121: =E121*F121 -> 0 | H121: 0
A123: Option 2) Indirect costs will be charged using the Federal Di Minimus, 10% of Modified Total Direct Costs, calculated as 10% multiplied by ( total direct costs, minus equipment, plus up to the first $25,000 of each subcontract (cell F248)). If using the Federal Di Minimus, your project indirect costs cannot exceed the total shown in cell G248. If using Option 2, enter the amount to be charged to indirect costs in cell H248. | E123: 0.1 | F123: =SUM(H110,H97,G69,G53,H39,H22) -> 281200 | G123: =E123*F123 -> 28120 | H123: 0
A125: If the amount entered in either H246 or H248 turns red, adjust it to not exceed the line-item limits noted in G246 and G248: TOTAL | H125: =SUM(H120:H123) -> 0
A127: Indirect Costs Narrative:
A128: If using a federally approved NICR, you must include evidence on the cost base(s) used to distribute indirect costs that agrees with the calculation entered in cell F246.
A131: MOD x APPROVAL DATE:

Sheet Year 3 Budget
A2: Section 5: Title II Grant - Year 3 Prorgram Budget and Budget Narrative
A3: Applicant: | D3: Enter name here
A4: Year 3 Program Budget: December 1, 2021 thru November 30, 2022
A5: Budget Line Item | H5: Total
A6: 1. Salaries and Benefits | H6: =H22 -> 105480
A7: 2. Services and Supplies | H7: =H39 -> 94500
A8: 3. Professional Services | H8: =H51 -> 0
A9: 4. Direct Service Provider Subcontracts | D9: Required Pass-thru = 70% Actual: | G9: =H9/H14 -> 0.4000571429 | H9: =H66 -> 140020
A10: 5. Equipment/Fixed Assets | H10: =H81 -> 0
A11: 6. Project Evaluation and Data Collection | H11: =H94 -> 10000
A12: 7. Other (Travel, Training, etc.) | H12: =H107 -> 0
A13: 8. Indirect Costs | H13: =H122 -> 0
A14: TOTAL | H14: =SUM(H6:H13) -> 350000
A16: 1. Salaries and Benefits
A17: Name and Title | C17: (% FTE or Hourly Rate) & Benefits | H17: Grant Funds
A18: YWFC Sisters on the Rise Program Manager | C18: 1.0 FTE @ $52,000 + benefits @ 26% = | H18: 65520
A19: YWFC Peer Advocate/Coach | C19: $18/hour x 20 hrs/week x 48 weeks = | H19: 17280
A20: YWFC Program Evaluation Director | C20: .075 FTE @ $80,000 = $6,000 + benefits @ 26%: $1,560 = | H20: 7560
A21: YWFC Executive Director | C21: .01 FTE @ $120,000 = $12,000 + benefits @ 26%: $3,120 = | H21: 15120
A22: TOTAL | H22: =SUM(H18:H21) -> 105480
A24: Salaries and Benefits
A25: The Sisters on the Rise Program Manager will oversee the program, provide job training and coaching, connect participants to education options, counseling, case management and other support services. In addition the Program Manager will coordinate with De-Bug and our County partners on referrals. The Peer Advocate/Coach will do outreach for program participants, support participants in developing personal and professional plans, support youth in court and system engagements, identify training and support needs, and provide on-site job coaching. The Program Evaluation Director will supportl data collection and will coordinate with the BSCC Evaluator, SCC, Vera Institute and NYU to centralize data.The Executive Director will oversee the building of the project in SCC and coordinate relationships with SCC Probation, Office of Women's Policy and the Juvenile Court.
A31: MOD 1 APPROVAL DATE: 4/12/2023
A32: CYWD is requesting a budget modification effective 10/1/22. We are proposing to move $25,890 from Services and Supplies to Personnel; this amount is coming from our calculation of $74,468.85 in underspent funds in Services and Supplies in Years 1 and 2. The need for additional funds in Personnel is due to the fact that CYWD has significantly increased wages for grant-funded positions since 2019, and underspendng in Services and Supplies is due to COVID-related delays and program changes. Total modified Personnel = $342,330.00 (Program Manager 0.75 FTE @ $90,000 annual + .26 fringe $216,090; Peer Advocate $22/hr x 20 hrs/week x 48 weeks $55680; Program Evaluation Director .075 FTE @ $80,000 + benefits @ 26% $22680; Co-Exective Director 0.1 FTE @ $140,000 annual + .26 fringe $47880) Total modified Services & Supplies $257,610.00 (Youth Honorariums $4,990/year x 15 youth = $74,850 + benefits @ 5% = $209,910; Travel $450 parking+ 1500 in SOR transit stipends + 1065 offsite transit/travel/parking + 2485 already charged Y3 = $35,500; Training Materials $190/month x 15 months = $4650; Community Events $3k for end of program graduation celebration = $3000; Insurance [allowable portion of org-wide insurance necessary for program] $4550) Total modified Direct Service Provider Contracts = $420,060.00 (no modification) Total modified Project Evaluation & Data Collection = $30,000.00 (NYU $10k per year x 3 years = $30000)
A34: 2. Services and Supplies
A35: Description of Services or Supplies | C35: Calculation for Expenditure | H35: Grant Funds
A36: Youth Honorariums | C36: $4,990/year x 15 youth = $74,850 + benefits @ 5%: $3,740 = | H36: 78600
A37: Travel for Youth for trainings & job internships | C37: $1,000/youth x 15 = | H37: 15000
A38: Training materials | C38: $75/month x 12 months = | H38: 900
A39: TOTAL | H39: =SUM(H36:H38) -> 94500
A41: Services and Supplies Narrative:
A42: Interns are stipended $4,990 for participating in 300 hours of training and job placement with on-the-job training plus 5% for government benefits (they are added to payroll toward building their employment history): 10 interns from Sept - May and 5 interns during the summer.Travel will cover participant's public transportation to and from trainings and job placements. Training materials include flip chart paper, photocopies, pens, notebooks, printer cartridges and binders.
A45: MOD 1 APPROVAL DATE: 4/12/2023
A46: CYWD is requesting a budget modification effective 10/1/22. We are proposing to move $25,890 from Services and Supplies to Personnel; this amount is coming from our calculation of $74,468.85 in underspent funds in Services and Supplies in Years 1 and 2. The need for additional funds in Personnel is due to the fact that CYWD has significantly increased wages for grant-funded positions since 2019, and underspendng in Services and Supplies is due to COVID-related delays and program changes. Total modified Personnel = $342,330.00 (Program Manager 0.75 FTE @ $90,000 annual + .26 fringe $216,090; Peer Advocate $22/hr x 20 hrs/week x 48 weeks $55680; Program Evaluation Director .075 FTE @ $80,000 + benefits @ 26% $22680; Co-Exective Director 0.1 FTE @ $140,000 annual + .26 fringe $47880) Total modified Services & Supplies $257,610.00 (Youth Honorariums $4,990/year x 15 youth = $74,850 + benefits @ 5% = $209,910; Travel $450 parking+ 1500 in SOR transit stipends + 1065 offsite transit/travel/parking + 2485 already charged Y3 = $35,500; Training Materials $190/month x 15 months = $4650; Community Events $3k for end of program graduation celebration = $3000; Insurance [allowable portion of org-wide insurance necessary for program] $4550) Total modified Direct Service Provider Contracts = $420,060.00 (no modification) Total modified Project Evaluation & Data Collection = $30,000.00 (NYU $10k per year x 3 years = $30000)
A48: 3. Professional Services
A49: Description of Professional Services | C49: Calculation for Expenditure | G49: di Minimis Calculation | H49: Grant Funds
G50: =IF(H50<25000,H50,25000) -> 0 | H50: 0
A51: TOTALS | G51: =SUM(G50:G50) -> 0 | H51: =SUM(H50:H50) -> 0
A53: Professional Services Narrative
A56: MOD x APPROVAL DATE:
A59: 4. Direct Service Provider Subcontracts (NGOs and/or Government Agencies)
A60: Government agencies and Indian Tribes- 70% pass-through required. NGOs and Indian Tribes providing direct services are exempt but are permitted to do so.
A61: Description of Subcontract | C61: Calculation for Expenditure | G61: di Minimis Calculation | H61: Grant Funds
A62: De-Bug Community Release Coordinator | C62: $27/hour x 12 hrs/week x 48 weeks = $15,552 + benefits @ 20%: $3,110 = | G62: =IF(H62<25000,H62,25000) -> 18662 | H62: 18662
A63: De-Bug Community Navigator | C63: $25/hour x 20 hrs/week x 48 weeks = $24,000 + benefits @ 20%: $4,800 = | G63: =IF(H63<25000,H63,25000) -> 25000 | H63: 28800
A64: Youth Honorariums | C64: $7,500/year x 12 youth = | G64: =IF(H64<25000,H64,25000) -> 25000 | H64: 90000
A65: Overhead | G65: =IF(H65<25000,H65,25000) -> 2558 | H65: 2558
A66: TOTALS | G66: =SUM(G62:G65) -> 71220 | H66: =SUM(H62:H65) -> 140020
A68: Direct Service Provider Subcontracts Subcontracts Narrative
A69: The Community Release Coordinator will manage De-Bug's participation in the project and engage with court and community partners. The Community Navigator will attend court, connect with community partners, and support youth in their goal development, access to resources, and training.The Youth Honorariums cover 520 hour of job training, academic support, connection to community resources and paid media and/or community organizing internships at De-Bug. Our overhead covers our financial record keeping, oversight by our Community Organizer and administrative supplies.
A73: MOD x APPROVAL DATE:
A76: 5. Equipment/Fixed Assets
A77: Description of Equipment/Fixed Asset | C77: Calculation for Expense | H77: Grant Funds
H78: 0
H79: 0
H80: 0
A81: TOTALS | H81: =SUM(H78:H80) -> 0
A83: Equipment/Fixed Assets Narrative
A87: MOD x APPROVAL DATE:
A90: 6. Project Evaluation and Data Collection
A91: Description | H91: Grant Funds
A92: Vera Institute | H92: 5000
A93: New York University | H93: 5000
A94: TOTAL | H94: =SUM(H92:H93) -> 10000
A96: Project Evaluation and Data Collection Narrative:
A97: The YWFC Program Evaluation Director will supportl data collection and will coordinate with the BSCC Evaluator, SCC, Vera Institute and NYU to centralize data. Vera Institute and NYU will provide data from on-going research and evaluation collaboration with SCC.
A100: MOD x APPROVAL DATE:
A103: 7. Other (Travel, Training, etc.)
A104: Description | C104: Calculation for Expense | H104: Grant Funds
H105: 0
H106: 0
A107: TOTAL | H107: =SUM(H105:H106) -> 0
A109: Other (Travel, Training, etc.) Narrative:
A112: MOD x APPROVAL DATE:
A115: 8. Indirect Costs
A116: Indirect costs may be charged by choosing only one of options 1) or 2) listed below. | H116: Grant Funds
A118: Option 1) Indirect costs will be charged using a Federally approved Negotiated Indirect Cost Rate (NICR). Enter your approved NICR percentage as a number (e.g., 25, 31, 32.25) in cell E246. Enter your calculated cost base in cell F246 (the total of all budget line items allowed as indicated in your federally approved NICR). Your project indirect costs cannot exceed the total shown in cell G246. If using Option 1, enter the amount to be charged to indirect costs in cell H246. | E118: 0 | F118: 0 | G118: =E118*F118 -> 0 | H118: 0
A120: Option 2) Indirect costs will be charged using the Federal Di Minimus, 10% of Modified Total Direct Costs, calculated as 10% multiplied by ( total direct costs, minus equipment, plus up to the first $25,000 of each subcontract (cell F248)). If using the Federal Di Minimus, your project indirect costs cannot exceed the total shown in cell G248. If using Option 2, enter the amount to be charged to indirect costs in cell H248. | E120: 0.1 | F120: =SUM(H107,H94,G66,G51,H39,H22) -> 281200 | G120: =E120*F120 -> 28120 | H120: 0
A122: If the amount entered in either H246 or H248 turns red, adjust it to not exceed the line-item limits noted in G246 and G248: TOTAL | H122: =SUM(H117:H120) -> 0
A124: Indirect Costs Narrative:
A125: If using a federally approved NICR, you must include evidence on the cost base(s) used to distribute indirect costs that agrees with the calculation entered in cell F246.
A129: MOD x APPROVAL DATE:

Sheet INVOICE DUE DATES
A1: Invoice # | B1: Reporting Period | C1: Due Date
A2: Invoice 1. | B2: December 1, 2019 to March 31, 2020 | C2: 2020-05-15
A3: Invoice 2. | B3: April 1, 2020 to June 30, 2020 | C3: 2020-08-15
A4: Invoice 3. | B4: July 1, 2020 to September 30, 2020 | C4: 2020-11-15
A5: Invoice 4. | B5: October 1, 2020 to December 31, 2020 | C5: 2021-02-15
A6: Invoice 5. | B6: January 1, 2021 to March 31, 2021 | C6: 2021-05-15
A7: Invoice 6. | B7: April 1, 2021 to June 30, 2021 | C7: 2021-08-15
A8: Invoice 7. | B8: July 1, 2021 to September 30, 2021 | C8: 2021-11-15
A9: Invoice 8. | B9: October 1, 2021 to December 31, 2021 | C9: 2022-02-15
A10: Invoice 9. | B10: January 1, 2022 to March 31, 2022 | C10: 2022-05-15
A11: Invoice 10. | B11: April 1, 2022 to June 30, 2022 | C11: 2022-08-15
A12: Invoice 11. | B12: July 1, 2022 to September 30, 2022 | C12: 2022-11-15
A13: Invoice 12. | B13: October 1, 2020 to November 30, 2022 | C13: 2023-01-15
A14: *Invoice 13. | B14: December 1, 2022 to February 28, 2023 | C14: 2023-03-31
A15: *Note: Only expenditures associated with comletion of the Final Local Evaluation Report may be included on Invoice 13.

Sheet INSTRUCTIONS
A1: Invoice Workbook
A3: How to Locate the Invoice Workbook
A4: Invoice workbooks are located on the Board of State and Community Corrections (BSCC) website under the Corrections Planning and Grant Programs Division (CPGP) webpage: http://www.bscc.ca.gov/s_correctionsplanningandprograms/.
A6: On the CPGP webpage, locate the CPGP Quick Links and select Grantee Invoicing.
A8: Invoice Workbooks are located under the respective grantee program (e.g., California Violence Intervention and Prevention, Edward Byrne Memorial Justice Assistance Grant, Law Enforcement Assisted Diversion, Proposition 47, etc.).
A10: How to Save the Invoice Workbook
A11: Right click on the file and select Save Link as. This will navigate the grantee to their computer files. The grantee shall navigate to a folder where they would like to save their Invoice Workbook. Do not rename the file.
A13: The grantee should then exit the web browser and work directly from the saved file.
A15: Prior to each reporting period, it is the grantee’s responsibility to download and save the Invoice Workbook to their local computer. This will ensure the most current budget information is being used in the Invoice Workbook.
A17: Forms Included in the Invoice Workbook
A18: The Invoice Workbook is an Excel file arranged by worksheet tabs (located along the bottom). The tabs included in the Invoice workbook are listed below:
A19: - Invoice (Form BSCC 201) for each reporting period;
A20: - Modification Request (Form BSCC 223.1 Rev 4/20);
A21: - Project Budget Narrative
A22: - Invoice Due Dates
A23: - Instructions.
A25: Passwords and Formulas in the Invoice Workbook
A26: Each time the grantee opens the Invoice workbook, they will be prompted to enter a password. The password is the grant agreement number (e.g. 990-19, include the -, do not include BSCC).
A28: The Invoice Workbook has specific functions which require macros to be enabled. A macro is a series of commands, such as calculations, that are stored within the document for tasks performed repeatedly. In most cases, Excel will prompt the grantee to enable macros. When this prompt appears, select Enable Editing then Enable Content. Enabling macros for the Invoice Workbook will not compromise the security of the local system nor the security of the agency's network.
A31: Financial Invoice - Form BSCC 201
A33: How to Complete a Financial Invoice
A34: Each Financial Invoice has a separate workbook tab titled, INVOICE #. The Financial Invoice will allow grantees to enter data into the green-shaded fields; all other fields are locked.
A36: The following instructions are for the green-shaded fields the Invoice to be completed by the Grantee.
A38: THIS REPORTING PERIOD
A39: The grantee shall enter the line item expenditures and match contributions incurred during the reporting period.
A40: All expenditures should be rounded to the nearest whole dollar; do not enter decimals.
A41: If an amount entered into a cell is greater than the available balance, an Invalid Dollar error message will appear. If the error is typographical, select Retry and enter the correct amount. If the amount entered is correct, however greater than the available balance, select Cancel and submit a Budget Modification. See, Budget Modification details below.
A43: EXPENDITURE DESCRIPTION
A44: For each dollar amount entered as an expenditure, enter a brief but detailed description. Your expenditures should correlate to Project Budget Narrative, which is listed on its own tab along with approved modification requests.
A46: PERSON PREPARING REPORT
A47: The grantee will designate an individual to prepare invoices. The Authorized Financial Officer cannot prepare invoices.
A48: The individual who prepares invoices will provide their contact information and the date the invoice was prepared under the PERSON PREPARING REPORT section. Then, forward the Invoice Workbook to the Authorized Financial Officer for review and approval.
A50: AUTHORIZED FINANCIAL OFFICER
A51: The Authorized Financial Officer is the Financial Officer listed in the Grant Agreement, STD 213 and/or Grantee Contact Information Sheet, Form 227.
A52: The Authorized Financial Officer cannot be the Project Director or the individual preparing the invoice.
A53: The Authorized Financial Officer must review each line item expenditure and description. Then, approve the invoice by checking the certification box and providing their contact information and the date of approval.
A54: Once the invoice is approved, the Authorized Financial Officer shall email the Invoice Workbook to the any grant inbox: anygrant@bscc.ca.gov. The Authorized Financial Officer is the only authorized party to submit an Invoice Workbook to the BSCC.
A55: Approved Financial Invoice
A56: Once BSCC staff reviews and approves the Financial Invoice, an updated Invoice Workbook will be available on the BSCC website. All approved Financial Invoices will be locked from editing but will be viewable in the Invoice Workbook.
A58: Modification Request - Form BSCC 223.1
A60: Modification Request Requirements
A61: It is the grantees responsibility to receive prior approval from the Field Representative for modifications to the budget or budget narrative. Once the Field Representative approves a modification to the budget or budget narrative, the grantee may complete and submit a Modification Request.
A62: The Modification Request Form allows the grantee to: - Make a change within a line-item change that modifies the grant project narrative, but does not change the total dollar amount of the line item. - Modify the budget by moving funds from one line item to another; or - Allocate earned project income
A64: The grantee must allow a minimum of 10 working days, for the modification form to be submitted and approved by the BSCC prior to completing the next invoice.
A66: How to Complete a Modification Request
A67: Grantees can access the Modification Request form by selecting the tab titled, MODIFICATION REQUEST. For the Modification Request form, grantees can enter data into the yellow-shaded fields; all other fields are locked. First, the grantee must select the purpose of the modification by checking the appropriate box in the yellow section at the top of the form.
A69: The following instructions are for the yellow-shaded fields in the Modification Request to be completed by the Grantee.
A71: Modification Request # and Effective on Invoice #
A72: The grantee shall identify the budget modification number by selecting the next number in sequential order (1 if it's the first) and then identify on which invoice the modification becomes effective.
A74: CHANGES (+/-) and JUSTIFICATION FOR MODIFIED BUDGET
A75: Line-item changes - Complete only the JUSTIFICATION FOR MODIFICATION section below the budget table. The justification must: list the affected line-item(s), detail how the original budget narrative has changed, and explain why the change is necessary. Line-item changes do not change the budget $$. Budget modifications - complete the CHANGES (+/-) section by using a + (plus symbol) followed by a whole dollar amount in the line item that is increasing and using a - (minus symbol) followed by a whole dollar amount in the line item that is decreasing. The TOTAL line must show zeros. In addition, complete the JUSTIFICATION FOR MODIFICATION section. The justification must: list the affected line-item(s), detail how the original budget narrative has changed, and explain why the change is necessary Project Income Allocation - use the Grant Funds column in the CHANGES (+/-) to show how the income will be allocated across line-items. In the Total Allocating box on the Project Income line copy the amount shown in the TOTAL line of Grant Funds column. In addition, complete the JUSTIFICATION FOR MODIFICATION section. The justification must: list the affected line-item(s) and provide narrative detail about how the project income will be used to advance program objectives. (See Grant Administration Guide, Section 13, Project and Other Income)
A77: PERSON PREPARING REPORT
A78: The grantee will designate an individual to prepare Modification Requests. The Authorized Financial Officer cannot prepare Modification Requests.
A79: The individual who prepares the request will provide their contact information and the date the modification was prepared under the PERSON PREPARING REPORT section. Then, forward the Invoice Workbook to the Authorized Financial Officer for review and approval.
A81: AUTHORIZED FINANCIAL OFFICER
A82: The Authorized Financial Officer is the Financial Officer listed in the Grant Agreement, STD 213 and/or Grantee Contact Information Sheet, Form 227.
A83: The Authorized Financial Officer cannot be the Project Director or the individual preparing the modification request.
A84: The Authorized Financial Officer must review each line item change, narrative change and justifications. Then, approve the modification request by checking the certification box and providing their contact information and the date of approval.
A85: Once the modification request is approved, the Authorized Financial Officer shall email the Invoice Workbook to the any grant inbox: anygrant@bscc.ca.gov. The Authorized Financial Officer is the only authorized party to submit it an Invoice Workbook to the BSCC.
A87: Approved Modification Request
A88: Once BSCC staff reviews and approves the Modification Request, the updated Invoice Workbook will be emailed to the Authorized Financial Officer and the individual who prepared the re quest. All approved modifications will be locked from editing but will be viewable in the Invoice Workbook.
